Workbook

Sheet Intro
E2: Verktyg för dokumentation av
E3: Business Case
E7: Detta är Ekonomistyrningsverkets stödverktyg (v. 2.0-5) för dokumentation av ett Business Case inklusive kostnads-/nyttokalkyl och andra beslutsparametrar. Verktyget syftar till att underlätta dokumentation och kalkylering av nyttor, kostnader, angelägenhet, hinder samt genomförbarhetsaspekten på den önskade förändringen för offentliga investeringar i verksamhetsutveckling.
B9: Verksamhetsområde | E9: Digitalisering och medicinsk teknik
B10: Mallversion | E10: 1.0
B11: Datum | E11: 2019-01-16
B12: Kontaktuppgifter | E12: Toni Suhonen (toni.suhonen@regionvasterbotten.se), Affärsutvecklare digitalisering
E13: Lina Sandman (lina.sandman@regionvasterbotten.se), Controller
B55: Kontaktuppgifter (ESV) | E55: Daniel Jafari (daniel.jafari@esv.se)

Sheet Grunddata
C1: GRUNDDATA
C2: I den här fliken anger du bland annat utvecklingsinsatsens grundläggande ingångsvärden och intressenter
C4: UTVECKLINGSINSATSENS BENÄMNING | E4: Digitala patientenkäter
C5: KALKYLANSVARIG | E5: Jim Johansson
C6: DATUM | E6: 2019-12-19
C7: VERSION | E7: 0.9
C9: EKONOMISKA PARAMETRAR
C10: I denna tabell anges grundläggande ekonomiska parametrar som används för beräkning av nyttor och kostnader
C11: Parameter | D11: Värde | E11: Enhet | F11: Instruktioner
C12: Startår | D12: 2020 | F12: Ange från vilket år periodiserade kostnader och nyttor ska anges. Används även som nuvarande år vid diskontering av kassaflöde
C13: Kalkylperiod | D13: 6 | E13: Antal år | F13: Ange antal år inklusive startår som kostnader och nyttor anges för (max 6)
C14: Kalkylränta | D14: 1.00% | E14: % | F14: Ange vilken ränta som ska användas i kalkyl av nytta och kostnader (statlig lånefinansieringsränta)
C15: Intern kostnad per timme | D15: 400 | E15: kr/h | F15: Ange kostnad per arbetstimme för intern personal. Detta belopp används i beräkningar då kostnad anges i timmar istället för kronor.
C16: Extern kostnad per timme | D16: 900 | E16: kr/h | F16: Ange kostnad per arbetstimme för extern personal. Detta belopp används i beräkningar då kostnad anges i timmar istället för kronor.
C17: Internt värde per timme | D17: 200 | E17: kr/h | F17: Ange värde per arbetstimme för intern personal. Detta belopp används i beräkningar då värdet anges i timmar istället för kronor.
C18: Externt värde per timme | D18: 800 | E18: kr/h | F18: Ange värde per arbetstimme för extern personal. Detta belopp används i beräkningar då värdet anges i timmar istället för kronor.
C20: INTRESSENTER
C21: I denna tabell anges som berörs av utvecklingsinsatsens resultat alternativt är involverade i genomförandet. De intressenter som anges här kommer att visas och bli valbara i den här mallens flikar om kostnader och nyttor
C22: Intressent kategori | D22: Intressent
C23: Region/Landsting | D23: RV Verksamheter
C24: Region/Landsting | D24: RV Hälsocentraler
C25: Region/Landsting | D25: Folkhälsa
C26: Region/Landsting | D26: ANOPIVA
C27: Region/Landsting | D27: VO Digitalisering och medicinsk teknik
C28: Region/Landsting | D28: Patienter
C29: Region/Landsting | D29: Epidemiologen
C30: Region/Landsting | D30: Biobanken Norr
C35: ANDRA ANTAGANDEN I KALKYLEN
C36: I denna tabell dokumenteras de andra ataganden som är gjorde i denna kalkyl. Syftet med denna information är att öka förståelsen för kalkylen. Observera att dessa värden används inte automatiskt av kalkylen
C37: Antagande | D37: Värde | E37: Enhet | F37: Förklaring
C38: Årsarbetstid | D38: 1,600.00 | E38: timmar | F38: Beräknad årsarbetstid är uppskattad utifrån antal timmar en helårstjänst kan redovisasa på ett projekt/uppdrag.
C39: Intern kostnad per timme | D39: 400.00 | E39: kr | F39: Intern genomsnittlig lönekostnad: (Månadslön heltid * 12 * 1,5 /1600). 400 kr/h motsvarar en genomsnittslön på cirka 35 000 kr/mån.

Sheet Ekonomiska nyttor
C1: EKONOMISKA NYTTOR
C2: I den här fliken anger du utvecklingsinsatsens olika budgetpåverkande nyttor | I2: Prognostiserat värde utan förändring…
I4: Prognostisera för hela kalkylperioden utifrån antingen estimerat nuvärde eller faktiskt nuvärde
D5: Ange typ av ekonomiska nyttan | E5: Ange en kortfattad beskrivning av nyttan | F5: Ange för vilken intressent nyttan uppstår. Faller nyttan hos flera aktörer får detta anges i en ny rad per intressent | G5: Ange ansvarig för realisering av nyttan | H5: Detta värde ska periodiseras under kalkylperioden per år | I5: Om faktiskt nuvärde saknas, ange estimerat värde | J5: Ange faktiskt nuvärde om känt | K5: Ange vilket målvärde önskas för indikatorn under hela perioden | L5: Detta värde ska periodiseras under kalkylperioden per år | Z5: Om möjligt estimera ett min- och ett max värde om antaganden blir annat | AC5: Faktor mellan medelvärde och min/max | AD5: Omräkning i TKR för nyttor angivna i timmar | AN5: Summa trolig nytta
C6: ID | D6: Nytta | E6: Beskriv den ekonomiska nyttan kortfattat | F6: Var uppstår nyttan? | G6: Nyttorealiseringsansvarig | H6: Enhet | I6: Baserat på estimerat nuvärde | J6: Baserat på faktiskt nuvärde | K6: Prognostiserat målvärde | L6: Nytta som ska periodiseras | N6: Enhet | O6: 2020 | P6: =O6+1 -> 2021 | Q6: =P6+1 -> 2022 | R6: 2023 | S6: 2024 | T6: 2025 | U6: 2026 | V6: 2027 | W6: 2028 | X6: 2029 | Y6: Summa | Z6: Min | AA6: Max | AB6: Vägt medelvärde | AC6: Osäkerhet | AD6: =O6 -> 2020 | AE6: =P6 -> 2021 | AF6: 2022 | AG6: 2023 | AH6: 2024 | AI6: 2025 | AJ6: 2026 | AK6: 2027 | AL6: 2028 | AM6: 2029 | AN6: Summa | AO6: Min | AP6: Max | AQ6: Vägt medelvärde | AR6: NyttaIntressent | AS6: =F6 -> Var uppstår nyttan? | AT6: =D6 -> Nytta
C7: 1 | D7: Övriga besparingar | E7: Minskade extern kostnad för tryck av pappersenkäter (VHU) | F7: Folkhälsa | G7: Maria Falck (Folkhälsa) | H7: tkr (tusen kronor) | I7: 160 | K7: 20 | L7: =IF(I7="",J7-K7,I7-K7) -> 140 | N7: =H7 -> tkr (tusen kronor) | O7: 40 | P7: 140 | Q7: 140 | R7: 140 | S7: 140 | T7: 140 | Y7: =SUM(O7:X7) -> 740 | AB7: =IF(OR(ISBLANK(Z7),ISBLANK(Y7),ISBLANK(AA7)),"",(Z7+AA7+3*Y7)/5) ->  | AC7: =IF(OR(ISBLANK(Y7),Y7=0),"",(AA7-Z7)/5/Y7) -> 0% | AD7: =IF($N7=NyttaEnhetInternaTimmar,O7*Internt_värde_per_timme/1000,IF($N7=NyttaEnhetExternaTimmar,O7*Externt_värde_per_timme/1000,O7)) -> 40 | AE7: =IF($N7=NyttaEnhetInternaTimmar,P7*Internt_värde_per_timme/1000,IF($N7=NyttaEnhetExternaTimmar,P7*Externt_värde_per_timme/1000,P7)) -> 140 | AF7: =IF($N7=NyttaEnhetInternaTimmar,Q7*Internt_värde_per_timme/1000,IF($N7=NyttaEnhetExternaTimmar,Q7*Externt_värde_per_timme/1000,Q7)) -> 140 | AG7: =IF($N7=NyttaEnhetInternaTimmar,R7*Internt_värde_per_timme/1000,IF($N7=NyttaEnhetExternaTimmar,R7*Externt_värde_per_timme/1000,R7)) -> 140 | AH7: =IF($N7=NyttaEnhetInternaTimmar,S7*Internt_värde_per_timme/1000,IF($N7=NyttaEnhetExternaTimmar,S7*Externt_värde_per_timme/1000,S7)) -> 140 | AI7: =IF($N7=NyttaEnhetInternaTimmar,T7*Internt_värde_per_timme/1000,IF($N7=NyttaEnhetExternaTimmar,T7*Externt_värde_per_timme/1000,T7)) -> 140 | AJ7: =IF($N7=NyttaEnhetInternaTimmar,U7*Internt_värde_per_timme/1000,IF($N7=NyttaEnhetExternaTimmar,U7*Externt_värde_per_timme/1000,U7)) -> 0 | AK7: =IF($N7=NyttaEnhetInternaTimmar,V7*Internt_värde_per_timme/1000,IF($N7=NyttaEnhetExternaTimmar,V7*Externt_värde_per_timme/1000,V7)) -> 0 | AL7: =IF($N7=NyttaEnhetInternaTimmar,W7*Internt_värde_per_timme/1000,IF($N7=NyttaEnhetExternaTimmar,W7*Externt_värde_per_timme/1000,W7)) -> 0 | AM7: =IF($N7=NyttaEnhetInternaTimmar,X7*Internt_värde_per_timme/1000,IF($N7=NyttaEnhetExternaTimmar,X7*Externt_värde_per_timme/1000,X7)) -> 0 | AN7: =IF($N7=NyttaEnhetInternaTimmar,Y7*Internt_värde_per_timme/1000,IF($N7=NyttaEnhetExternaTimmar,Y7*Externt_värde_per_timme/1000,Y7)) -> 740 | AO7: =IF($N7=NyttaEnhetInternaTimmar,Z7*Internt_värde_per_timme/1000,IF($N7=NyttaEnhetExternaTimmar,Z7*Externt_värde_per_timme/1000,Z7)) -> 0 | AP7: =IF($N7=NyttaEnhetInternaTimmar,AA7*Internt_värde_per_timme/1000,IF($N7=NyttaEnhetExternaTimmar,AA7*Externt_värde_per_timme/1000,AA7)) -> 0 | AQ7: =IF(OR(ISBLANK(AO7),ISBLANK(AN7),ISBLANK(AP7)),"",(AO7+AP7+3*AN7)/5) -> 444 | AR7: =AT7 & " @ " & AS7 -> Övriga besparingar @ Folkhälsa | AS7: =IF(F7="","(blank)",F7) -> Folkhälsa | AT7: =IF(D7="","(blank)",D7) -> Övriga besparingar
C8: 2 | D8: Övriga besparingar | E8: Minskade extern kostnad för optisk inläsning (VHU) | F8: Folkhälsa | G8: Maria Falck (Folkhälsa) | H8: tkr (tusen kronor) | I8: 105 | K8: 0 | L8: =IF(I8="",J8-K8,I8-K8) -> 105 | N8: =H8 -> tkr (tusen kronor) | O8: 30 | P8: 105 | Q8: 105 | R8: 105 | S8: 105 | T8: 105 | Y8: =SUM(O8:X8) -> 555 | AB8: =IF(OR(ISBLANK(Z8),ISBLANK(Y8),ISBLANK(AA8)),"",(Z8+AA8+3*Y8)/5) ->  | AC8: =IF(OR(ISBLANK(Y8),Y8=0),"",(AA8-Z8)/5/Y8) -> 0% | AD8: 30 | AE8: 105 | AF8: 105 | AG8: 105 | AH8: 105 | AI8: 105 | AJ8: 0 | AK8: 0 | AL8: 0 | AM8: 0 | AN8: 555 | AO8: 0 | AP8: 0 | AQ8: =IF(OR(ISBLANK(AO8),ISBLANK(AN8),ISBLANK(AP8)),"",(AO8+AP8+3*AN8)/5) -> 333 | AR8: =AT8 & " @ " & AS8 -> Övriga besparingar @ Folkhälsa | AS8: Folkhälsa | AT8: Övriga besparingar
C9: 3 | D9: Reducerad personalkostnad | E9: Minskad arbetstid på Biobanken Norr för omhändertagande av pappersenkäter (VHU) | F9: Biobanken Norr | G9: Jenny Åkerblom (Biobanken) | H9: Interna timmar | I9: 675 | K9: 0 | L9: =IF(I9="",J9-K9,I9-K9) -> 675 | N9: Interna timmar | O9: 150 | P9: 675 | Q9: 675 | R9: 675 | S9: 675 | T9: 675 | Y9: =SUM(O9:X9) -> 3,525 | AB9: =IF(OR(ISBLANK(Z9),ISBLANK(Y9),ISBLANK(AA9)),"",(Z9+AA9+3*Y9)/5) ->  | AC9: =IF(OR(ISBLANK(Y9),Y9=0),"",(AA9-Z9)/5/Y9) -> 0% | AD9: 30 | AE9: 135 | AF9: 135 | AG9: 135 | AH9: 135 | AI9: 135 | AJ9: 0 | AK9: 0 | AL9: 0 | AM9: 0 | AN9: 705 | AO9: 0 | AP9: 0 | AQ9: 423 | AR9: Reducerad personalkostnad @ Biobanken Norr | AS9: Biobanken Norr | AT9: Reducerad personalkostnad
C10: 4 | D10: Reducerad personalkostnad | E10: Minskat behov att vårdpersonal som scannar in pappersenkäter i NCS Cross (ANOPIVA) | F10: ANOPIVA | G10: Niklas Larsson (ANOPIVA) | H10: Interna timmar | I10: 2,500 | K10: 500 | L10: =IF(I10="",J10-K10,I10-K10) -> 2,000 | N10: Interna timmar | O10: 1,000 | P10: 2,000 | Q10: 2,000 | R10: 2,000 | S10: 2,000 | T10: 2,000 | Y10: =SUM(O10:X10) -> 11,000 | AC10: 0% | AD10: 200 | AE10: 400 | AF10: 400 | AG10: 400 | AH10: 400 | AI10: 400 | AJ10: 0 | AK10: 0 | AL10: 0 | AM10: 0 | AN10: 2200 | AO10: 0 | AP10: 0 | AQ10: 1320 | AR10: Reducerad personalkostnad @ ANOPIVA | AS10: ANOPIVA | AT10: Reducerad personalkostnad
C11: 5 | D11: Reducerad personalkostnad | E11: Minskat behov att vårdpersonal manuellt överföra info från hälsodeklarationer till Metavision (ANOPIVA) | F11: ANOPIVA | G11: Niklas Larsson (ANOPIVA) | H11: Interna timmar | I11: 2,500 | K11: 500 | L11: 2,000 | N11: Interna timmar | O11: 1,000 | P11: 2,000 | Q11: 2,000 | R11: 2,000 | S11: 2,000 | T11: 2,000 | Y11: 11,000 | AC11: 0% | AD11: 200 | AE11: 400 | AF11: 400 | AG11: 400 | AH11: 400 | AI11: 400 | AJ11: 0 | AK11: 0 | AL11: 0 | AM11: 0 | AN11: 2200 | AO11: 0 | AP11: 0 | AQ11: 1320 | AR11: Reducerad personalkostnad @ ANOPIVA | AS11: ANOPIVA | AT11: Reducerad personalkostnad
C12: 6 | L12: 0 | N12: 0 | Y12: 0 | AD12: 0 | AE12: 0 | AF12: 0 | AG12: 0 | AH12: 0 | AI12: 0 | AJ12: 0 | AK12: 0 | AL12: 0 | AM12: 0 | AN12: 0 | AO12: 0 | AP12: 0 | AQ12: 0 | AR12: (blank) @ (blank) | AS12: (blank) | AT12: (blank)
C13: 7 | L13: 0 | N13: 0 | Y13: 0 | AD13: 0 | AE13: 0 | AF13: 0 | AG13: 0 | AH13: 0 | AI13: 0 | AJ13: 0 | AK13: 0 | AL13: 0 | AM13: 0 | AN13: 0 | AO13: 0 | AP13: 0 | AQ13: 0 | AR13: (blank) @ (blank) | AS13: (blank) | AT13: (blank)
C14: 8 | L14: 0 | N14: 0 | Y14: 0 | AD14: 0 | AE14: 0 | AF14: 0 | AG14: 0 | AH14: 0 | AI14: 0 | AJ14: 0 | AK14: 0 | AL14: 0 | AM14: 0 | AN14: 0 | AO14: 0 | AP14: 0 | AQ14: 0 | AR14: (blank) @ (blank) | AS14: (blank) | AT14: (blank)
C15: 9 | L15: 0 | N15: 0 | Y15: 0 | AD15: 0 | AE15: 0 | AF15: 0 | AG15: 0 | AH15: 0 | AI15: 0 | AJ15: 0 | AK15: 0 | AL15: 0 | AM15: 0 | AN15: 0 | AO15: 0 | AP15: 0 | AQ15: 0 | AR15: (blank) @ (blank) | AS15: (blank) | AT15: (blank)
C16: 10 | L16: 0 | N16: 0 | Y16: 0 | AD16: 0 | AE16: 0 | AF16: 0 | AG16: 0 | AH16: 0 | AI16: 0 | AJ16: 0 | AK16: 0 | AL16: 0 | AM16: 0 | AN16: 0 | AO16: 0 | AP16: 0 | AQ16: 0 | AR16: (blank) @ (blank) | AS16: (blank) | AT16: (blank)
C17: 11 | L17: 0 | N17: 0 | Y17: 0 | AD17: 0 | AE17: 0 | AF17: 0 | AG17: 0 | AH17: 0 | AI17: 0 | AJ17: 0 | AK17: 0 | AL17: 0 | AM17: 0 | AN17: 0 | AO17: 0 | AP17: 0 | AQ17: 0 | AR17: (blank) @ (blank) | AS17: (blank) | AT17: (blank)
C18: 12 | L18: 0 | N18: 0 | Y18: 0 | AD18: 0 | AE18: 0 | AF18: 0 | AG18: 0 | AH18: 0 | AI18: 0 | AJ18: 0 | AK18: 0 | AL18: 0 | AM18: 0 | AN18: 0 | AO18: 0 | AP18: 0 | AQ18: 0 | AR18: (blank) @ (blank) | AS18: (blank) | AT18: (blank)
C19: 13 | L19: 0 | N19: 0 | Y19: 0 | AD19: 0 | AE19: 0 | AF19: 0 | AG19: 0 | AH19: 0 | AI19: 0 | AJ19: 0 | AK19: 0 | AL19: 0 | AM19: 0 | AN19: 0 | AO19: 0 | AP19: 0 | AQ19: 0 | AR19: (blank) @ (blank) | AS19: (blank) | AT19: (blank)
C20: 14 | L20: 0 | N20: 0 | Y20: 0 | AD20: 0 | AE20: 0 | AF20: 0 | AG20: 0 | AH20: 0 | AI20: 0 | AJ20: 0 | AK20: 0 | AL20: 0 | AM20: 0 | AN20: 0 | AO20: 0 | AP20: 0 | AQ20: 0 | AR20: (blank) @ (blank) | AS20: (blank) | AT20: (blank)
C21: 15 | L21: 0 | N21: 0 | Y21: 0 | AD21: 0 | AE21: 0 | AF21: 0 | AG21: 0 | AH21: 0 | AI21: 0 | AJ21: 0 | AK21: 0 | AL21: 0 | AM21: 0 | AN21: 0 | AO21: 0 | AP21: 0 | AQ21: 0 | AR21: (blank) @ (blank) | AS21: (blank) | AT21: (blank)
D22: Total nytta (tkr) | E22: =AN22 -> 6,400 | AB22: =IF(OR(ISBLANK(Z22),ISBLANK(E22),ISBLANK(AA22)),"",(Z22+AA22+3*E22)/5) ->  | AD22: =SUM(AD7:AD21) -> 500 | AE22: 1180 | AF22: 1180 | AG22: 1180 | AH22: 1180 | AI22: 1180 | AJ22: 0 | AK22: 0 | AL22: 0 | AM22: 0 | AN22: 6400 | AO22: 0 | AP22: 0 | AQ22: 3840
AD23: =AD22 -> 500 | AE23: =AD23+AE22 -> 1680 | AF23: =AE23+AF22 -> 2860 | AG23: 4040 | AH23: 5220 | AI23: 6400 | AJ23: 6400 | AK23: 6400 | AL23: 6400 | AM23: 6400

Sheet Kvalitativa nyttor
C1: KVALITATIVA NYTTOR
C2: I den här fliken anger du förändringsinsatsens olika kvalitativa nyttor samt indikator och enhet. Varje indikatorvärde får även periodiseras för kalkylperioden i syfte att underlätta uppföljningen
D4: Ange typ av kvalitativ nytta | E4: Ange en kortfattad beskrivning av nyttan | F4: Ange för vilken intressent nyttan uppstår. Faller nyttan hos flera aktörer får detta anges i en ny rad per intressent | G4: Ange ansvarig för realisering av nyttan | H4: Ange med vilken indikator nyttan kommer att mätas | I4: Ange enhet för indikatorn | J4: Om faktiskt nuvärde saknas, ange estimerat värde | K4: Ange faktiskt nuvärde om känt | L4: Ange vilket målvärde önskas för indikatorn under hela perioden | N4: Uppskatta hur stor betydelse nyttan har (relevans jmf mot övriga nyttor) | Q4: Ange uppskattad indikatorvärde för perioden. Dessa värden påverkar inte kalkylen men kommer att underlätta uppföljningen. Dessa värden blir underlag för nyttohemtagningsregistret samt verksamhetsplanen för respektive år
C5: ID | D5: Nytta | E5: Beskriv den kvalitativa nyttan kortfattat | F5: Var uppstår nyttan? | G5: Nyttorealiseringsansvarig | H5: Indikator | I5: Enhet | J5: Estimerat nuvärde | K5: Faktiskt nuvärde | L5: Målvärde | M5: Nyttan som ska periodiseras | N5: Nyttans betydelse | O5: Poäng | Q5: 2020 | R5: =Q5+1 -> 2021 | S5: =R5+1 -> 2022 | T5: 2023 | U5: 2024 | V5: 2025 | W5: 2026 | X5: 2027 | Y5: 2028 | Z5: 2029 | AA5: Bedömd vikt | AB5: NyttaIntressent | AC5: =F5 -> Var uppstår nyttan? | AD5: =D5 -> Nytta
C6: 1 | E6: Minskad pappersanvändning, vilket är positivt för miljön (Folkhälsa) | J6: 6000 | L6: 400 | N6: 3: Medium | O6: =IFERROR(1*LEFT(N6,FIND(":",N6)-1),0) -> 3 | AA6: =O6 -> 3 | AB6: =AD6 & " @ " & AC6 -> (blank) @ (blank) | AC6: =IF(F6="","(blank)",F6) -> (blank) | AD6: =IF(D6="","(blank)",D6) -> (blank)
C7: 2 | E7: Minskad pappersanvändning, vilket är positivt för miljön (ANOPIVA) | J7: 30000 | L7: 6000 | N7: 3: Medium | O7: =IFERROR(1*LEFT(N7,FIND(":",N7)-1),0) -> 3 | AA7: 3 | AB7: =AD7 & " @ " & AC7 -> (blank) @ (blank) | AC7: =IF(F7="","(blank)",F7) -> (blank) | AD7: =IF(D7="","(blank)",D7) -> (blank)
C8: 3 | E8: Säkrare hantering enkäter (minskad risk att tappa bort enkäter, säker inloggning) | J8: 36000 | L8: 6400 | N8: 3: Medium | O8: 3 | AA8: 3 | AB8: (blank) @ (blank) | AC8: (blank) | AD8: (blank)
C9: 4 | O9: 0 | AA9: 0 | AB9: (blank) @ (blank) | AC9: (blank) | AD9: (blank)
C10: 5 | O10: 0 | AA10: 0 | AB10: (blank) @ (blank) | AC10: (blank) | AD10: (blank)
C11: 6 | O11: 0 | AA11: 0 | AB11: (blank) @ (blank) | AC11: (blank) | AD11: (blank)
C12: 7 | O12: 0 | AA12: 0 | AB12: (blank) @ (blank) | AC12: (blank) | AD12: (blank)
C13: 8 | O13: 0 | AA13: 0 | AB13: (blank) @ (blank) | AC13: (blank) | AD13: (blank)
C14: 9 | O14: 0 | AA14: 0 | AB14: (blank) @ (blank) | AC14: (blank) | AD14: (blank)
C15: 10 | O15: 0 | AA15: 0 | AB15: (blank) @ (blank) | AC15: (blank) | AD15: (blank)
C16: 11 | O16: 0 | AA16: 0 | AB16: (blank) @ (blank) | AC16: (blank) | AD16: (blank)
C17: 12 | O17: 0 | AA17: 0 | AB17: (blank) @ (blank) | AC17: (blank) | AD17: (blank)
C18: 13 | O18: 0 | AA18: 0 | AB18: (blank) @ (blank) | AC18: (blank) | AD18: (blank)
C19: 14 | O19: 0 | AA19: 0 | AB19: (blank) @ (blank) | AC19: (blank) | AD19: (blank)
C20: 15 | O20: 0 | AA20: 0 | AB20: (blank) @ (blank) | AC20: (blank) | AD20: (blank)

Sheet Kostnader
C1: KOSTNADER
C2: I den här fliken anger du utvecklingsinsatsens olika kostnader.
D4: Ange kostnadstyp | E4: Ange en kortfattad beskrivning av kostnadsposten | F4: Ange för vilken intressent kostnaden uppstår. Uppstår kostnad hos flera aktörer får detta anges i en ny rad per intressent | I4: Ange uppskattad kostnad per år (TKR om kostnaden anges i kronor) | T4: Om möjligt estimera ett min- och ett max värde om antaganden blir annat | W4: Faktor mellan medelvärde och min/max | X4: Omräkning i TKR för kostnader angivna i timmar | AH4: Summa trolig kostnad
C5: ID | D5: Kostnadstyp | E5: Beskriv kostnaden kortfattat | F5: Var uppstår kostnaden? | H5: Enhet | I5: 2020 | J5: =I5+1 -> 2021 | K5: =J5+1 -> 2022 | L5: 2023 | M5: 2024 | N5: 2025 | O5: 2026 | P5: 2027 | Q5: 2028 | R5: 2029 | S5: Summa | T5: Min | U5: Max | V5: Vägt medelv. | W5: Osäkerhet | X5: =I5 -> 2020 | Y5: =X5+1 -> 2021 | Z5: =Y5+1 -> 2022 | AA5: 2023 | AB5: 2024 | AC5: 2025 | AD5: 2026 | AE5: 2027 | AF5: 2028 | AG5: 2029 | AH5: Summa | AI5: Min | AJ5: Max | AK5: Vägt medelv. | AL5: Intressent | AM5: Beskrivning | AN5: Kostnadstyp inkl. blank | AO5: Område
C6: 1 | D6: Införande | E6: Anslutningsavgift patientportal (inkorg/avisering i 1177) | F6: VO Digitalisering och medicinsk teknik | H6: tkr (tusen kronor) | I6: 25 | S6: =SUMIFS(I6:R6,I$5:R$5,">=" & Grunddata!$D$12,I$5:R$5, "<" & Grunddata!$D$12+Grunddata!$D$13) -> 25 | V6: =IF(OR(ISBLANK(T6),ISBLANK(S6),ISBLANK(U6)),"",(T6+U6+3*S6)/5) ->  | W6: =IF(OR(ISBLANK(S6),S6=0),"",(U6-T6)/5/S6) -> 0% | X6: =IF($H6=KostnadEnhetInternaTimmar,I6*Intern_kostnad_per_timme/1000,IF($H6=KostnadEnhetExternaTimmar,I6*Extern_kostnad_per_timme/1000,I6)) -> 25 | Y6: =IF($H6=KostnadEnhetInternaTimmar,J6*Intern_kostnad_per_timme/1000,IF($H6=KostnadEnhetExternaTimmar,J6*Extern_kostnad_per_timme/1000,J6)) -> 0 | Z6: 0 | AA6: =IF($H6=KostnadEnhetInternaTimmar,L6*Intern_kostnad_per_timme/1000,IF($H6=KostnadEnhetExternaTimmar,L6*Extern_kostnad_per_timme/1000,L6)) -> 0 | AB6: =IF($H6=KostnadEnhetInternaTimmar,M6*Intern_kostnad_per_timme/1000,IF($H6=KostnadEnhetExternaTimmar,M6*Extern_kostnad_per_timme/1000,M6)) -> 0 | AC6: =IF($H6=KostnadEnhetInternaTimmar,N6*Intern_kostnad_per_timme/1000,IF($H6=KostnadEnhetExternaTimmar,N6*Extern_kostnad_per_timme/1000,N6)) -> 0 | AD6: =IF($H6=KostnadEnhetInternaTimmar,O6*Intern_kostnad_per_timme/1000,IF($H6=KostnadEnhetExternaTimmar,O6*Extern_kostnad_per_timme/1000,O6)) -> 0 | AE6: =IF($H6=KostnadEnhetInternaTimmar,P6*Intern_kostnad_per_timme/1000,IF($H6=KostnadEnhetExternaTimmar,P6*Extern_kostnad_per_timme/1000,P6)) -> 0 | AF6: =IF($H6=KostnadEnhetInternaTimmar,Q6*Intern_kostnad_per_timme/1000,IF($H6=KostnadEnhetExternaTimmar,Q6*Extern_kostnad_per_timme/1000,Q6)) -> 0 | AG6: =IF($H6=KostnadEnhetInternaTimmar,R6*Intern_kostnad_per_timme/1000,IF($H6=KostnadEnhetExternaTimmar,R6*Extern_kostnad_per_timme/1000,R6)) -> 0 | AH6: =SUM(X6:AG6) -> 25 | AI6: =IF(ISBLANK(T6),$AH6, IF($H6=KostnadEnhetInternaTimmar,T6*Intern_kostnad_per_timme/1000,IF($H6=KostnadEnhetExternaTimmar,T6*Extern_kostnad_per_timme/1000,T6))) -> 25 | AJ6: =IF(ISBLANK(U6),$AH6, IF($H6=KostnadEnhetInternaTimmar,U6*Intern_kostnad_per_timme/1000,IF($H6=KostnadEnhetExternaTimmar,U6*Extern_kostnad_per_timme/1000,U6))) -> 25 | AK6: =IF(OR(ISBLANK(AI6),ISBLANK(AH6),ISBLANK(AJ6)),"",(AI6+AJ6+3*AH6)/5) -> 25 | AL6: =IF(F6="","(blank)",F6) -> VO Digitalisering och medicinsk teknik | AM6: =IF(E6="","(blank)",E6) -> Anslutningsavgift patientportal (inkorg/avisering i 1177) | AN6: =IF(D6="","(blank)",D6) -> Införande | AO6: =IF(#REF!="","(blank)",#REF!) -> 
C7: 2 | D7: Införande | E7: Utbildning EyeDoc för utvecklare | F7: VO Digitalisering och medicinsk teknik | H7: tkr (tusen kronor) | I7: 55 | S7: =SUMIFS(I7:R7,I$5:R$5,">=" & Grunddata!$D$12,I$5:R$5, "<" & Grunddata!$D$12+Grunddata!$D$13) -> 55 | V7: =IF(OR(ISBLANK(T7),ISBLANK(S7),ISBLANK(U7)),"",(T7+U7+3*S7)/5) ->  | W7: =IF(OR(ISBLANK(S7),S7=0),"",(U7-T7)/5/S7) -> 0% | X7: 55 | Y7: 0 | Z7: =IF($H7=KostnadEnhetInternaTimmar,K7*Intern_kostnad_per_timme/1000,IF($H7=KostnadEnhetExternaTimmar,K7*Extern_kostnad_per_timme/1000,K7)) -> 0 | AA7: 0 | AB7: 0 | AC7: 0 | AD7: 0 | AE7: 0 | AF7: 0 | AG7: 0 | AH7: =SUM(X7:AG7) -> 55 | AI7: =IF(ISBLANK(T7),$S7, IF($H7='-Admin-'!$C$21,T7*Grunddata!$D$15/1000,IF($H7='-Admin-'!$C$22,T7*Grunddata!$D$16/1000,T7))) -> 55 | AJ7: =IF(ISBLANK(U7),$S7, IF($H7='-Admin-'!$C$21,U7*Grunddata!$D$15/1000,IF($H7='-Admin-'!$C$22,U7*Grunddata!$D$16/1000,U7))) -> 55 | AK7: =IF(OR(ISBLANK(AI7),ISBLANK(AH7),ISBLANK(AJ7)),"",(AI7+AJ7+3*AH7)/5) -> 55 | AL7: =IF(F7="","(blank)",F7) -> VO Digitalisering och medicinsk teknik | AM7: Utbildning EyeDoc för utvecklare | AN7: Införande | AO7: =IF(#REF!="","(blank)",#REF!) -> 
C8: 3 | D8: Införande | E8: Utveckling i Metavision - utökad uthoppsfunktion | F8: VO Digitalisering och medicinsk teknik | H8: Externa Timmar | I8: 40 | S8: =SUMIFS(I8:R8,I$5:R$5,">=" & Grunddata!$D$12,I$5:R$5, "<" & Grunddata!$D$12+Grunddata!$D$13) -> 40 | W8: 0% | X8: 36 | Y8: 0 | Z8: 0 | AA8: 0 | AB8: 0 | AC8: 0 | AD8: 0 | AE8: 0 | AF8: 0 | AG8: 0 | AH8: 36 | AI8: =IF(ISBLANK(T8),$S8, IF($H8='-Admin-'!$C$21,T8*Grunddata!$D$15/1000,IF($H8='-Admin-'!$C$22,T8*Grunddata!$D$16/1000,T8))) -> 40 | AJ8: =IF(ISBLANK(U8),$S8, IF($H8='-Admin-'!$C$21,U8*Grunddata!$D$15/1000,IF($H8='-Admin-'!$C$22,U8*Grunddata!$D$16/1000,U8))) -> 40 | AK8: 37.6 | AL8: VO Digitalisering och medicinsk teknik | AM8: Utveckling i Metavision - utökad uthoppsfunktion | AN8: Införande | AO8: =IF(#REF!="","(blank)",#REF!) -> 
C9: 4 | D9: Införande | E9: Utveckling i Metavision - integration av patientsvar | F9: VO Digitalisering och medicinsk teknik | H9: Externa Timmar | I9: 200 | S9: =SUMIFS(I9:R9,I$5:R$5,">=" & Grunddata!$D$12,I$5:R$5, "<" & Grunddata!$D$12+Grunddata!$D$13) -> 200 | W9: 0% | X9: 180 | Y9: 0 | Z9: 0 | AA9: 0 | AB9: 0 | AC9: 0 | AD9: 0 | AE9: 0 | AF9: 0 | AG9: 0 | AH9: 180 | AI9: =IF(ISBLANK(T9),$S9, IF($H9='-Admin-'!$C$21,T9*Grunddata!$D$15/1000,IF($H9='-Admin-'!$C$22,T9*Grunddata!$D$16/1000,T9))) -> 200 | AJ9: =IF(ISBLANK(U9),$S9, IF($H9='-Admin-'!$C$21,U9*Grunddata!$D$15/1000,IF($H9='-Admin-'!$C$22,U9*Grunddata!$D$16/1000,U9))) -> 200 | AK9: 188 | AL9: VO Digitalisering och medicinsk teknik | AM9: Utveckling i Metavision - integration av patientsvar | AN9: Införande | AO9: =IF(#REF!="","(blank)",#REF!) -> 
C10: 5 | D10: Införande | E10: Utvecklingskostnad av formulär i formulärtjänsten | F10: VO Digitalisering och medicinsk teknik | H10: tkr (tusen kronor) | I10: 25 | S10: =SUMIFS(I10:R10,I$5:R$5,">=" & Grunddata!$D$12,I$5:R$5, "<" & Grunddata!$D$12+Grunddata!$D$13) -> 25 | W10: 0% | X10: 25 | Y10: 0 | Z10: 0 | AA10: 0 | AB10: 0 | AC10: 0 | AD10: 0 | AE10: 0 | AF10: 0 | AG10: 0 | AH10: 25 | AI10: =IF(ISBLANK(T10),$S10, IF($H10='-Admin-'!$C$21,T10*Grunddata!$D$15/1000,IF($H10='-Admin-'!$C$22,T10*Grunddata!$D$16/1000,T10))) -> 25 | AJ10: =IF(ISBLANK(U10),$S10, IF($H10='-Admin-'!$C$21,U10*Grunddata!$D$15/1000,IF($H10='-Admin-'!$C$22,U10*Grunddata!$D$16/1000,U10))) -> 25 | AK10: 25 | AL10: VO Digitalisering och medicinsk teknik | AM10: Utvecklingskostnad av formulär i formulärtjänsten | AN10: Införande | AO10: =IF(#REF!="","(blank)",#REF!) -> 
C11: 6 | D11: Införande | E11: Utveckling av rapportuttag EyeDoc | F11: VO Digitalisering och medicinsk teknik | H11: tkr (tusen kronor) | I11: 35 | S11: =SUMIFS(I11:R11,I$5:R$5,">=" & Grunddata!$D$12,I$5:R$5, "<" & Grunddata!$D$12+Grunddata!$D$13) -> 35 | W11: 0% | X11: 35 | Y11: 0 | Z11: 0 | AA11: 0 | AB11: 0 | AC11: 0 | AD11: 0 | AE11: 0 | AF11: 0 | AG11: 0 | AH11: 35 | AI11: =IF(ISBLANK(T11),$S11, IF($H11='-Admin-'!$C$21,T11*Grunddata!$D$15/1000,IF($H11='-Admin-'!$C$22,T11*Grunddata!$D$16/1000,T11))) -> 35 | AJ11: =IF(ISBLANK(U11),$S11, IF($H11='-Admin-'!$C$21,U11*Grunddata!$D$15/1000,IF($H11='-Admin-'!$C$22,U11*Grunddata!$D$16/1000,U11))) -> 35 | AK11: 35 | AL11: VO Digitalisering och medicinsk teknik | AM11: Utveckling av rapportuttag EyeDoc | AN11: Införande | AO11: =IF(#REF!="","(blank)",#REF!) -> 
C12: 7 | D12: Drift/Förvaltning | E12: Utskick till 1177 inkorg á 3,1 kr/utskick (6000 + 30.000 enkätutskick) | F12: VO Digitalisering och medicinsk teknik | H12: tkr (tusen kronor) | I12: 0 | J12: 112 | K12: 112 | L12: 112 | M12: 112 | N12: 112 | S12: =SUMIFS(I12:R12,I$5:R$5,">=" & Grunddata!$D$12,I$5:R$5, "<" & Grunddata!$D$12+Grunddata!$D$13) -> 560 | W12: 0% | X12: 0 | Y12: 112 | Z12: 112 | AA12: 112 | AB12: 112 | AC12: 112 | AD12: 0 | AE12: 0 | AF12: 0 | AG12: 0 | AH12: 560 | AI12: =IF(ISBLANK(T12),$S12, IF($H12='-Admin-'!$C$21,T12*Grunddata!$D$15/1000,IF($H12='-Admin-'!$C$22,T12*Grunddata!$D$16/1000,T12))) -> 560 | AJ12: =IF(ISBLANK(U12),$S12, IF($H12='-Admin-'!$C$21,U12*Grunddata!$D$15/1000,IF($H12='-Admin-'!$C$22,U12*Grunddata!$D$16/1000,U12))) -> 560 | AK12: 560 | AL12: VO Digitalisering och medicinsk teknik | AM12: Utskick till 1177 inkorg á 3,1 kr/utskick (6000 + 30.000 enkätutskick) | AN12: Drift/Förvaltning | AO12: =IF(#REF!="","(blank)",#REF!) -> 
C13: 8 | S13: =SUMIFS(I13:R13,I$5:R$5,">=" & Grunddata!$D$12,I$5:R$5, "<" & Grunddata!$D$12+Grunddata!$D$13) -> 0 | X13: 0 | Y13: 0 | Z13: 0 | AA13: 0 | AB13: 0 | AC13: 0 | AD13: 0 | AE13: 0 | AF13: 0 | AG13: 0 | AH13: 0 | AI13: =IF(ISBLANK(T13),$S13, IF($H13='-Admin-'!$C$21,T13*Grunddata!$D$15/1000,IF($H13='-Admin-'!$C$22,T13*Grunddata!$D$16/1000,T13))) -> 0 | AJ13: =IF(ISBLANK(U13),$S13, IF($H13='-Admin-'!$C$21,U13*Grunddata!$D$15/1000,IF($H13='-Admin-'!$C$22,U13*Grunddata!$D$16/1000,U13))) -> 0 | AK13: 0 | AL13: (blank) | AM13: (blank) | AN13: (blank) | AO13: =IF(#REF!="","(blank)",#REF!) -> 
C14: 9 | S14: =SUMIFS(I14:R14,I$5:R$5,">=" & Grunddata!$D$12,I$5:R$5, "<" & Grunddata!$D$12+Grunddata!$D$13) -> 0 | X14: 0 | Y14: 0 | Z14: 0 | AA14: 0 | AB14: 0 | AC14: 0 | AD14: 0 | AE14: 0 | AF14: 0 | AG14: 0 | AH14: 0 | AI14: =IF(ISBLANK(T14),$S14, IF($H14='-Admin-'!$C$21,T14*Grunddata!$D$15/1000,IF($H14='-Admin-'!$C$22,T14*Grunddata!$D$16/1000,T14))) -> 0 | AJ14: =IF(ISBLANK(U14),$S14, IF($H14='-Admin-'!$C$21,U14*Grunddata!$D$15/1000,IF($H14='-Admin-'!$C$22,U14*Grunddata!$D$16/1000,U14))) -> 0 | AK14: 0 | AL14: (blank) | AM14: (blank) | AN14: (blank) | AO14: =IF(#REF!="","(blank)",#REF!) -> 
C15: 10 | S15: =SUMIFS(I15:R15,I$5:R$5,">=" & Grunddata!$D$12,I$5:R$5, "<" & Grunddata!$D$12+Grunddata!$D$13) -> 0 | X15: 0 | Y15: 0 | Z15: 0 | AA15: 0 | AB15: 0 | AC15: 0 | AD15: 0 | AE15: 0 | AF15: 0 | AG15: 0 | AH15: =SUM(X15:AG15) -> 0 | AI15: =IF(ISBLANK(T15),$S15, IF($H15='-Admin-'!$C$21,T15*Grunddata!$D$15/1000,IF($H15='-Admin-'!$C$22,T15*Grunddata!$D$16/1000,T15))) -> 0 | AJ15: =IF(ISBLANK(U15),$S15, IF($H15='-Admin-'!$C$21,U15*Grunddata!$D$15/1000,IF($H15='-Admin-'!$C$22,U15*Grunddata!$D$16/1000,U15))) -> 0 | AK15: =IF(OR(ISBLANK(AI15),ISBLANK(AH15),ISBLANK(AJ15)),"",(AI15+AJ15+3*AH15)/5) -> 0 | AL15: (blank) | AM15: (blank) | AN15: (blank) | AO15: =IF(#REF!="","(blank)",#REF!) -> 
C16: 11 | S16: =SUMIFS(I16:R16,I$5:R$5,">=" & Grunddata!$D$12,I$5:R$5, "<" & Grunddata!$D$12+Grunddata!$D$13) -> 0 | X16: 0 | Y16: 0 | Z16: 0 | AA16: 0 | AB16: 0 | AC16: 0 | AD16: 0 | AE16: 0 | AF16: 0 | AG16: 0 | AH16: 0 | AI16: =IF(ISBLANK(T16),$S16, IF($H16='-Admin-'!$C$21,T16*Grunddata!$D$15/1000,IF($H16='-Admin-'!$C$22,T16*Grunddata!$D$16/1000,T16))) -> 0 | AJ16: =IF(ISBLANK(U16),$S16, IF($H16='-Admin-'!$C$21,U16*Grunddata!$D$15/1000,IF($H16='-Admin-'!$C$22,U16*Grunddata!$D$16/1000,U16))) -> 0 | AK16: 0 | AL16: (blank) | AM16: (blank) | AN16: (blank) | AO16: =IF(#REF!="","(blank)",#REF!) -> 
C17: 12 | S17: =SUMIFS(I17:R17,I$5:R$5,">=" & Grunddata!$D$12,I$5:R$5, "<" & Grunddata!$D$12+Grunddata!$D$13) -> 0 | X17: 0 | Y17: 0 | Z17: 0 | AA17: 0 | AB17: 0 | AC17: 0 | AD17: 0 | AE17: 0 | AF17: 0 | AG17: 0 | AH17: 0 | AI17: =IF(ISBLANK(T17),$S17, IF($H17='-Admin-'!$C$21,T17*Grunddata!$D$15/1000,IF($H17='-Admin-'!$C$22,T17*Grunddata!$D$16/1000,T17))) -> 0 | AJ17: =IF(ISBLANK(U17),$S17, IF($H17='-Admin-'!$C$21,U17*Grunddata!$D$15/1000,IF($H17='-Admin-'!$C$22,U17*Grunddata!$D$16/1000,U17))) -> 0 | AK17: 0 | AL17: (blank) | AM17: (blank) | AN17: (blank) | AO17: =IF(#REF!="","(blank)",#REF!) -> 
C18: 13 | S18: =SUMIFS(I18:R18,I$5:R$5,">=" & Grunddata!$D$12,I$5:R$5, "<" & Grunddata!$D$12+Grunddata!$D$13) -> 0 | X18: 0 | Y18: 0 | Z18: 0 | AA18: 0 | AB18: 0 | AC18: 0 | AD18: 0 | AE18: 0 | AF18: 0 | AG18: 0 | AH18: 0 | AI18: =IF(ISBLANK(T18),$S18, IF($H18='-Admin-'!$C$21,T18*Grunddata!$D$15/1000,IF($H18='-Admin-'!$C$22,T18*Grunddata!$D$16/1000,T18))) -> 0 | AJ18: =IF(ISBLANK(U18),$S18, IF($H18='-Admin-'!$C$21,U18*Grunddata!$D$15/1000,IF($H18='-Admin-'!$C$22,U18*Grunddata!$D$16/1000,U18))) -> 0 | AK18: 0 | AL18: (blank) | AM18: (blank) | AN18: (blank) | AO18: =IF(#REF!="","(blank)",#REF!) -> 
C19: 14 | S19: =SUMIFS(I19:R19,I$5:R$5,">=" & Grunddata!$D$12,I$5:R$5, "<" & Grunddata!$D$12+Grunddata!$D$13) -> 0 | X19: 0 | Y19: 0 | Z19: 0 | AA19: 0 | AB19: 0 | AC19: 0 | AD19: 0 | AE19: 0 | AF19: 0 | AG19: 0 | AH19: 0 | AI19: =IF(ISBLANK(T19),$S19, IF($H19='-Admin-'!$C$21,T19*Grunddata!$D$15/1000,IF($H19='-Admin-'!$C$22,T19*Grunddata!$D$16/1000,T19))) -> 0 | AJ19: =IF(ISBLANK(U19),$S19, IF($H19='-Admin-'!$C$21,U19*Grunddata!$D$15/1000,IF($H19='-Admin-'!$C$22,U19*Grunddata!$D$16/1000,U19))) -> 0 | AK19: 0 | AL19: (blank) | AM19: (blank) | AN19: (blank) | AO19: =IF(#REF!="","(blank)",#REF!) -> 
C20: 15 | S20: =SUMIFS(I20:R20,I$5:R$5,">=" & Grunddata!$D$12,I$5:R$5, "<" & Grunddata!$D$12+Grunddata!$D$13) -> 0 | X20: 0 | Y20: 0 | Z20: 0 | AA20: 0 | AB20: 0 | AC20: 0 | AD20: 0 | AE20: 0 | AF20: 0 | AG20: 0 | AH20: 0 | AI20: =IF(ISBLANK(T20),$S20, IF($H20='-Admin-'!$C$21,T20*Grunddata!$D$15/1000,IF($H20='-Admin-'!$C$22,T20*Grunddata!$D$16/1000,T20))) -> 0 | AJ20: =IF(ISBLANK(U20),$S20, IF($H20='-Admin-'!$C$21,U20*Grunddata!$D$15/1000,IF($H20='-Admin-'!$C$22,U20*Grunddata!$D$16/1000,U20))) -> 0 | AK20: 0 | AL20: (blank) | AM20: (blank) | AN20: (blank) | AO20: =IF(#REF!="","(blank)",#REF!) -> 
R21: Total kostnad (tkr) | S21: =SUM($AH$6:$AH$20) -> 916 | X21: =SUM(X6:X20) -> 356 | Y21: 112 | Z21: 112 | AA21: 112 | AB21: 112 | AC21: 112 | AD21: 0 | AE21: 0 | AF21: 0 | AG21: 0 | AH21: 916 | AI21: 940 | AJ21: 940 | AK21: 925.6
X22: =X21 -> 356 | Y22: =X22+Y21 -> 468 | Z22: =Y22+Z21 -> 580 | AA22: 692 | AB22: 804 | AC22: 916 | AD22: 916 | AE22: 916 | AF22: 916 | AG22: 916

Sheet Angelägenhet
C2: ANGELÄGENHET | E2: Sammanslaget värde, angelägenhet | F2: =AVERAGE(F6,F15,F24,F33) -> 3.75
C3: I den här fliken anger du utvecklingsinsatsens angelägenhet utifrån fyra olika perspektiv. Använd tabellen under varje parameter som stöd. Tabellen beskriver parametern, nivåer, samt förklaring till respektive nivå.
C5: Parameter | D5: Gör bedömning nedan | E5: Beskriv motiveringen kortfattat | F5: Värde
C6: Måluppfyllnad och strategier | D6: 4: Hög | E6: Stort regionövergripande behov | F6: =IFERROR(1*LEFT(D6,FIND(":",D6)-1),0) -> 4
C8: Här gör du en bedömning av i vilken utsträckning som utvecklingsinsatsens avsedda förändring bidrar till att uppnå verksamhetens mål och strategiska inriktining.och efterfrågan. | D8: Mycket hög | E8: Utvecklingsinsatsens avsedda förändring ligger helt i linje med verksamhetens strategiska inriktning och bidrar i mycket hög utsträckning till ett eller flera av verksamhetens mål. Verksamhetens måluppfyllelse är direkt beroende av den förändring som just denna utvecklingsinsats ämnar åstadkomma.
D9: Högt | E9: Utvecklingsinsatsens avsedda förändring ligger helt i linje med verksamhetens strategiska inriktning och bidrar i hög utsträckning till ett eller flera av verksamhetens mål. Verksamhetens måluppfyllelse är beroende av den förändring som just denna utvecklingsinsats ämnar åstadkomma.
D10: Medel | E10: Utvecklingsinsatsens avsedda förändring ligger i linje med verksamhetens strategiska inriktning och bidrar till ett eller flera av verksamhetens mål. Verksamhetens måluppfyllelse är påverkas av den förändring som just denna utvecklingsinsats ämnar åstadkomma.
D11: Låg | E11: Kopplingen mellan utvecklingsinsatsens avsedda förändring och verksamhetens strategiska inriktning är otydlig. Utvecklingsinsatsen bidrar eventuellt och i begränsad utsträckning till verksamhetens mål. Verksamhetens måluppfyllelse är inte direkt beroende av den förändring som just denna utvecklingsinsats ämnar åstadkomma.
D12: Mycket låg | E12: Kopplingen mellan utvecklingsinsatsens avsedda förändring och verksamhetens strategiska inriktning är mycket otydlig alternativt helt okänd. Utvecklingsinsatsen bidrar sannolikt inte alls alternativt i mycket begränsad utsträckning till verksamhetens mål. Verksamhetens måluppfyllelse är inte beroende av den förändring som just denna utvecklingsinsats ämnar åstadkomma.
C14: Parameter | D14: Gör bedömning nedan | E14: Beskriv motiveringen kortfattat | F14: Värde
C15: Politisk angelägenhet | D15: 4: Hög | E15: Hållbar ekonomi | F15: =IFERROR(1*LEFT(D15,FIND(":",D15)-1),0) -> 4
C17: Här gör du en bedömning av i vilken utsträckning som utvecklingsinsatsens avsedda förändring kopplar an till och bidrar till regeringens mål och visioner (som är relevanta för utvecklingsinsatsen), alternativt mål uttryckta i instruktioner, regleringsbrev etc. | D17: Mycket hög | E17: Utvecklingsinsatsens avsedda förändring kopplar an på ett väldigt tydligt sätt till flera politiska mål (eller visioner), alternativt bidrar i mycket hög utsträckning till mål uttryckta i intruktioner, regleringsbrev etc.
D18: Högt | E18: Utvecklingsinsatsens avsedda förändring kopplar an på ett tydligt sätt till ett eller flera politiska mål (eller visioner), alternativt bidrar i hög utsträckning till mål uttryckta i intruktioner, regleringsbrev etc.
D19: Medel | E19: Utvecklingsinsatsens avsedda förändring kopplar an till ett eller flera politiska mål (eller visioner), alternativt bidrar till mål uttryckta i intruktioner, regleringsbrev etc.
D20: Låg | E20: Utvecklingsinsatsens avsedda förändring har svag koppling till de huvudsakligt berörda politiska målen (eller visionerna), alternativt bidrar i begränsad utsträckning till mål uttryckta i intruktioner, regleringsbrev etc.
D21: Mycket låg | E21: Utvecklingsinsatsens avsedda förändring har en mycket svag koppling till de huvudsakligt berörda politiska målen (eller visionerna), alternativt bidrar i mycket begränsad utsträckning till mål uttryckta i intruktioner, regleringsbrev etc.
C23: Parameter | D23: Gör bedömning nedan | E23: Beskriv motiveringen kortfattat | F23: Värde
C24: Teknisk angelägenhet | D24: 3: Medel | F24: =IFERROR(1*LEFT(D24,FIND(":",D24)-1),0) -> 3
C26: Här gör du en bedömning av i vilken utsträckning som den tekniska situationen (en alltmer föråldrad teknik, upphörande support etc.) förutsätter eller kräver den förändring som utvecklingsinsatsen avser att åstadkomma. | D26: Mycket hög | E26: Utan den förändring som utvecklingsinsatsen avser att åstadkomma kommer flera verksamhetskritiska delar av den it-tekniska miljön sluta fungera helt inom kort. Möjligheterna till verksamhetsutveckling med stöd av it omöjliggörs.
D27: Högt | E27: Utan den förändring som utvecklingsinsatsen avser att åstadkomma kommer en eller flera verksamhetsmässigt viktiga delar av den it-tekniska miljön sluta fungera helt inom kort. Möjligheterna till verksamhetsutveckling med stöd av it försämras avsevärt.
D28: Medel | E28: Utan den förändring som utvecklingsinsatsen avser att åstadkomma kommer en eller flera verksamhetsmässigt viktiga delar av den it-tekniska miljön att fungera bristfälligt. Möjligheterna till verksamhetsutveckling med stöd av it försämras.
D29: Låg | E29: Verksamhetskritiska eller verksamhetsmässigt viktiga delar av den it-tekniska miljön kommer till stor del att behålla acceptabel funktionalitet, oavsett om utvecklingsinsatsen genomförs eller inte. Möjligheterna till verksamhetsutveckling påverkas inte nämnvärt.
D30: Mycket låg | E30: Verksamhetskritiska eller verksamhetsmässigt viktiga delar av den it-tekniska miljön kommer helt att behålla acceptabel funktionalitet, oavsett om utvecklingsinsatsen genomförs eller inte. Möjligheterna till verksamhetsutveckling påverkas inte alls.
C32: Parameter | D32: Gör bedömning nedan | E32: Beskriv motiveringen kortfattat | F32: Värde
C33: Efterfrågan inom organisationen | D33: 4: Hög | F33: 4
C35: Här gör du en bedömning av i vilken utsträckning som organisationen/medarbetarna efterfrågar den förändring som utvecklingsinsatsen avser åstadkomma, samt i vilken grad utvecklingsinsatsen påverkar verksamhetens utvecklingspotential. | D35: Mycket hög | E35: Organisationens/medarbetarnas efterfrågan på den förändring som utvecklingsinsatsen avser åstadkomma är mycket stor, alternativt verksamheten går miste om en mycket stor utvecklingspotential om utvecklingsinsatsen inte genomförs.
D36: Högt | E36: Organisationens/medarbetarnas efterfrågan på den förändring som utvecklingsinsatsen avser åstadkomma är stor, alternativt verksamheten går miste om en stor utvecklingspotential om utvecklingsinsatsen inte genomförs.
D37: Medel | E37: Organisationen/medarbetarna efterfrågar den förändring som utvecklingsinsatsen avser åstadkomma, alternativt verksamheten går miste om viss utvecklingspotential om utvecklingsinsatsen inte genomförs.
D38: Låg | E38: Organisationens/medarbetarnas efterfrågan på den förändring som utvecklingsinsatsen avser åstadkomma är liten, alternativt verksamhetens utvecklingspotential är i princip oförändrad även om utvecklingsinsatsen genomförs.
D39: Mycket låg | E39: Organisationens/medarbetarnas efterfrgan på den förändring som utvecklingsinsatsen avser åstadkomma är mycket liten, alternativt verksamhetens utvecklingspotential förblir oförändrad eller begränsasom utvecklingsinsatsen genomförs

Sheet Genomförbarhet
C1: GENOMFÖRBARHET | E1: Sammandlaget värde genomförbarhet | F1: =IFERROR(AVERAGEIF((N6:N19),">0"),0) -> 3.4
C3: I den här fliken anger du utvecklingsinsatsens genomförbarhet utifrån elva olika perspektiv. Använd tabellen under varje parameter som stöd. Tabellen beskriver parametern, nivåer, samt förklaring till respektive nivå. | I3: Värdelista
C5: Parameter | D5: Gör bedömning nedan | E5: Beskriv motiveringen kortfattat | F5: Värde | I5: Parameter | N5: Värde
C6: Antal involverade/berörda intressenter | D6: 2: Hög | F6: =IFERROR(1*LEFT(D6,FIND(":",D6)-1),"") -> 2 | H6: 1 | I6: =C6 -> Antal involverade/berörda intressenter | N6: =F6 -> 2
H7: 2 | I7: =C15 -> Antal berörda användare | N7: =F15 -> 3
C8: Här gör du en bedömning av i vilken utsträckning antalet involverade och/eller berörda aktörer/intressenter påverkar utvecklingsinsatsens genomförbarhet. | D8: Mycket hög | E8: Många olika aktörer (organisationer) är involverade i genomförandet av utvecklingsinsatsen, alternativt den förändring som utvecklingsinsatsen avser åstadkomma berör ett mycket stort antal intressenter. Antalet involverade aktörer och/eller berörda intressenter påverkar utvecklingsinsatsens genomförbarhet i mycket hög grad.
D9: Hög | E9: Fler än en aktör (organisationer) är involverade i genomförandet av utvecklingsinsatsen, alternativt den förändring som utvecklingsinsatsen avser åstadkomma berör ett stort antal intressenter. Antalet involverade aktörer och/eller berörda intressenter påverkar utvecklingsinsatsens genomförbarhet i hög grad. | H9: 3 | I9: =C24 -> Förmåga hos berörda användare | N9: =F24 -> 3
D10: Medium | E10: Fler än en aktör (organisationer) är involverade i genomförandet av utvecklingsinsatsen, alternativt den förändring som utvecklingsinsatsen avser åstadkomma berör flera intressenter. Antalet involverade aktörer och/eller berörda intressenter påverkar till viss del utvecklingsinsatsens genomförbarhet. | H10: 4 | I10: =C33 -> Mottaglighet hos berörda användare | N10: =F33 -> 4
D11: Låg | E11: En aktör (organisation) genomför utvecklingsinsatsen, alternativt den förändring som utvecklingsinsatsen avser åstadkomma berör ett begränsat antal intressenter. Antalet involverade aktörer och/eller berörda intressenter påverkar inte nämnvärt utvecklingsinsatsens genomförbarhet. | H11: 5 | I11: =C42 -> Projekt-och programstyrning | N11: =F42 -> 4
D12: Mycket låg | E12: En aktör (organisation) genomför utvecklingsinsatsen, alternativt den förändring som utvecklingsinsatsen avser åstadkomma berör ett mycket begränsat antal intressenter. Antalet involverade aktörer och/eller berörda intressenter påverkar inte alls utvecklingsinsatsens genomförbarhet.
H13: 6 | I13: =C51 -> Teknisk komplexitet | N13: =F51 -> 3
C14: Parameter | D14: Gör bedömning nedan | E14: Beskriv motiveringen kortfattat | F14: Värde | H14: 7 | I14: =C60 -> Tillgång till teknisk kompetens | N14: =F60 -> 3
C15: Antal berörda användare | D15: 3: Medel | F15: =IFERROR(1*LEFT(D15,FIND(":",D15)-1),"") -> 3 | H15: 8 | I15: =C69 -> Tillgång till resurser | N15: =F69 -> 4
H16: 9 | I16: =C78 -> Juridiska förutsättningar | N16: =F78 -> 5
C17: Här gör du en bedömning av i vilken utsträckning antalet berörda användare (kunder) påverkar utvecklingsinsatsens genomförbarhet. | D17: Mycket hög | E17: Ett mycket stort antal användare berörs av den förändring som utvecklingsinsatsen avser åstadkomma. Antalet berörda användare påverkar utvecklingsinsatsens genomförbarhet i mycket hög grad.
D18: Hög | E18: Ett stort antal användare berörs av den förändring som utvecklingsinsatsen avser åstadkomma. Antalet berörda användare påverkar utvecklingsinsatsens genomförbarhet i hög grad. | H18: 10 | I18: =C87 -> Finansiering | N18: =F87 -> 3
D19: Medium | E19: Flera användare berörs av den förändring som utvecklingsinsatsen avser åstadkomma. Antalet berörda användare påverkar till viss del utvecklingsinsatsens genomförbarhet. | H19: 11 | I19: =C96 -> Sammantagen bedömning av rikser och hinder | N19: =F96 -> 
D20: Låg | E20: Ett begränsat antal användare berörs av den förändring som utvecklingsinsatsen avser åstadkomma. Antalet berörda användare påverkar inte nämnvärt utvecklingsinsatsens genomförbarhet.
D21: Mycket låg | E21: Ett mycket begränsat antal användare berörs av den förändring som utvecklingsinsatsen avser åstadkomma. Antalet berörda användare påverkar inte alls utvecklingsinsatsens genomförbarhet.
C23: Parameter | D23: Gör bedömning nedan | E23: Beskriv motiveringen kortfattat | F23: Värde
C24: Förmåga hos berörda användare | D24: 3: Medel | F24: =IFERROR(1*LEFT(D24,FIND(":",D24)-1),"") -> 3
C26: Här gör du en bedömning av i vilken utsträckning förmågan (kunskapsnivå) hos de berörda användarna påverkar utvecklingsinsatsens genomförbarhet. | D26: Mycket hög | E26: Förmågan hos de berörda användarna att ta till sig och nyttja de förändringar som utvecklingsinsatsen avser åstadkomma är mycket god. Det finns inget behov av utbildningsinsatser.
D27: Hög | E27: Förmågan hos de berörda användarna att ta till sig och nyttja de förändringar som utvecklingsinsatsen avser åstadkomma är god. Det finns ett mycket litet behov av utbildningsinsatser.
D28: Medium | E28: Förmågan hos de berörda användarna att ta till sig och nyttja de förändringar som utvecklingsinsatsen avser åstadkomma är delvis god. Det finns ett visst behov av utbildningsinsatser.
D29: Låg | E29: Förmågan hos de berörda användarna att ta till sig och nyttja de förändringar som utvecklingsinsatsen avser åstadkomma är bristfällig. Det finns ett tydligt behov av utbildningsinsatser.
D30: Mycket låg | E30: Förmågan hos de berörda användarna att ta till sig och nyttja de förändringar som utvecklingsinsatsen avser åstadkomma är mycket bristfällig. Det finns ett tydligt behov av mer omfattande utbildningsinsatser.
C32: Parameter | D32: Gör bedömning nedan | E32: Beskriv motiveringen kortfattat | F32: Värde
C33: Mottaglighet hos berörda användare | D33: 4: Hög | F33: =IFERROR(1*LEFT(D33,FIND(":",D33)-1),"") -> 4
C35: Här gör du en bedömning av i vilken utsträckning mottagligheten hos de berörda användarna/intressenterna påverkar utvecklingsinsatsens genomförbarhet. | D35: Mycket hög | E35: Mottagligheten hos de berörda användarna/intressenterna för de förändringar som utvecklingsinsatsen avser åstadkomma ärmycket hög.
D36: Hög | E36: Mottagligheten hos de berörda användarna/intressenterna för de förändringar som utvecklingsinsatsen avser åstadkomma är hög.
D37: Medium | E37: De berörda användarna/intressenterna är varken positiva eller negativa till de förändringar som utvecklingsinsatsen avser åstadkomma
D38: Låg | E38: Mottagligheten hos de berörda användarna/intressenterna för de förändringar som utvecklingsinsatsen avser åstadkomma är svag.
D39: Mycket låg | E39: Mottagligheten hos de berörda användarna/intressenterna för de förändringar som utvecklingsinsatsen avser åstadkomma är mycket svag.
C41: Parameter | D41: Gör bedömning nedan | E41: Beskriv motiveringen kortfattat | F41: Värde
C42: Projekt-och programstyrning | D42: 4: Hög | F42: =IFERROR(1*LEFT(D42,FIND(":",D42)-1),"") -> 4
C44: Här gör du en bedömning av hur pass etablerat projekt- och programstyrning är i organisationen, av hur pass systematiskt och effektivt den tillämpas för att åstadkomma avsedda resultat med utvecklingsinsatser, samt av i vilken utsträckning detta påverkar utvecklingsinsatsens genomförbarhet. | D44: Mycket hög | E44: Projekt- och programstyrning är mycket väl etablerat i organisationen och används systematiskt och på ett effektivt sätt vid genomförande av utvecklingsinsatser. Organisationen präglas av en kultur där det är helt naturligt att tillämpa projekt- och programstyrning för att nå avsedda resultat.
D45: Hög | E45: Projekt- och programstyrning är etablerat i organisationen och används, i stora delar, på ett systematiskt och effektivt sätt vid genomförande av utvecklingsinsatser. Organisationen präglas av en kultur där det är naturligt att tillämpa projekt- och programstyrning för att nå avsedda resultat.
D46: Medel | E46: Projekt- och programstyrning är delvis etablerat i organisationen och används endast sporadiskt vid genomförande av utvecklingsinsatser. Organisationen har en kultur där det, i vissa sammanhang, ses som en fördel att tillämpa projekt- och programstyrning för att nå avsedda resultat.
D47: Låg | E47: Projekt- och programstyrning är inte etablerat i organisationen och används mycket sällan vid genomförande av utvecklingsinsatser. Organisationen har en kultur där det inte ses som en fördel att tillämpa projekt- och programstyrning för att nå avsedda resultat.
D48: Mycket låg | E48: Projekt- och programstyrning existerar inte i organisationen.
C50: Parameter | D50: Gör bedömning nedan | E50: Beskriv motiveringen kortfattat | F50: Värde
C51: Teknisk komplexitet | D51: 3: Medel | F51: =IFERROR(1*LEFT(D51,FIND(":",D51)-1),"") -> 3
C53: Här gör du en bedömning av i vilken utsträckning den tekniska komplexiteten, kopplat till den lösning som utvecklingsinsatsen avser att ta fram, påverkar utvecklingsinsatsens genomförbarhet. | D53: Mycket hög | E53: Den förändring som utvecklingsinsatsen avser åstadkomma förutsätter en mycket komplex teknisk lösning. Exempelvis, strävan efter den avsedda förändringen förutsätter att utvecklingsinsatsen ger sig i kast med ett tekniskt område som tidigare varit helt främmande för organisationen, alternativt att lösningen ställer mycket höga krav på integration mellan flera olika system.
D54: Hög | E54: Den förändring som utvecklingsinsatsen avser åstadkomma förutsätter en komplex teknisk lösning. Exempelvis, strävan efter den avsedda förändringen förutsätter att utvecklingsinsatsen ger sig i kast med ett relativt nytt tekniskt område för organisationen, alternativt att lösningen ställer höga krav på integration mellan olika system.
D55: Medel | E55: Den förändring som utvecklingsinsatsen avser åstadkomma förutsätter en delvis komplex teknisk lösning. Exempelvis, strävan efter den avsedda förändringen förutsätter att utvecklingsinsatsen ger sig i kast med ett tekniskt område som är känt för organisationen, alternativt att lösningen ställer krav på integration mellan olika system.
D56: Låg | E56: Den förändring som utvecklingsinsatsen avser åstadkomma förutsätter en teknisk lösning som inte är komplex, alternativt komplex enbart i mindre betydelsefulla avseenden. Exempelvis, strävan efter den avsedda förändringen förutsätter att utvecklingsinsatsen ger sig i kast med ett tekniskt område som är välkänt för organisationen, alternativt att lösningen ställer låga krav på integration mellan olika system.
D57: Mycket låg | E57: Den förändring som utvecklingsinsatsen avser åstadkomma förutsätter en teknisk lösning som inte alls är komplex. Exempelvis, strävan efter den avsedda förändringen förutsätter att utvecklingsinsatsen ger sig i kast med ett tekniskt område som är "vardagsmat" för organisationen, alternativt att lösningen ställer mycket låga krav på integration mellan olika system.
C59: Parameter | D59: Gör bedömning nedan | E59: Beskriv motiveringen kortfattat | F59: Värde
C60: Tillgång till teknisk kompetens | D60: 3: Medel | F60: =IFERROR(1*LEFT(D60,FIND(":",D60)-1),"") -> 3
C62: Här gör du en bedömning av i vilken utsträckning tillgången till teknisk kompetens (med avseende på den tekniska lösning som utvecklingsinsatens avsedda resultat förutsätter) påverkar utvecklingsinsatsens genomförbarhet. | D62: Mycket hög | E62: Personella resurser som har spetskompetens inom det aktuella tekniska området finns mycket lättillgängliga, såväl internt i organisationen som på konsultmarknaden.
D63: Hög | E63: Personella resurser som har kompetens inom det aktuella tekniska området finns lättillgängliga, såväl internt i organisationen som på konsultmarknaden.
D64: Medel | E64: Internt i organisationen finns några personella resurser som har kompetens inom det aktuella tekniska området, men de är tillgängliga endast i viss utsträckning. På konsultmarknaden är dock tillgängligheten god vad gäller kompetens inom det aktuella tekniska området.
D65: Låg | E65: Internt i organisationen finns få personella resurser som har kompetens inom det aktuella tekniska området, men de är tillgängliga endast i mycket begränsad utsträckning. På konsultmarknaden är tillgängligheten bristfällig vad gäller kompetens inom det aktuella tekniska området.
D66: Mycket låg | E66: Internt i organisationen saknas personella resurser som har kompetens inom det aktuella tekniska området. På konsultmarknaden är tillgängligheten mycket bristfällig vad gäller kompetens inom det aktuella tekniska området.
C68: Parameter | D68: Gör bedömning nedan | E68: Beskriv motiveringen kortfattat | F68: Värde
C69: Tillgång till resurser | D69: 4: Hög | F69: =IFERROR(1*LEFT(D69,FIND(":",D69)-1),"") -> 4
C71: Här gör du en bedömning av i vilken utsträckning tillgången till resurser i form av personal och deras tillgängliga tid påverkar utvecklingsinsatsens genomförbarhet. | D71: Mycket hög | E71: Tillgången till personella resurser inom organisationen, som kan bidra till att åstadkomma utvecklingsinsatsens avsedda förändring, är mycket god. Dessa personella resurser har gott om tillgänglig tid till att kunna bidra.
D72: Hög | E72: Tillgången till personella resurser inom organisationen, som kan bidra till att åstadkomma utvecklingsinsatsens avsedda förändring, är god. Dessa personella resurser har tillgänglig tid till att kunna bidra.
D73: Medel | E73: Tillgången till personella resurser inom organisationen, som kan bidra till att åstadkomma utvecklingsinsatsens avsedda förändring, är delvis god. Dessa personella resurser har viss tillgänglig tid till att kunna bidra.
D74: Låg | E74: Tillgången till personella resurser inom organisationen, som kan bidra till att åstadkomma utvecklingsinsatsens avsedda förändring, är begränsad. Dessa personella resurser har ont om tillgänglig tid till att kunna bidra.
D75: Mycket låg | E75: Tillgången till personella resurser inom organisationen, som kan bidra till att åstadkomma utvecklingsinsatsens avsedda förändring, är mycket begränsad. Dessa personella resurser har, i allt väsentligt, ingen tillgänglig tid alls, till att kunna bidra.
C77: Parameter | D77: Gör bedömning nedan | E77: Beskriv motiveringen kortfattat | F77: Värde
C78: Juridiska förutsättningar | D78: 5: Mycket hög | F78: =IFERROR(1*LEFT(D78,FIND(":",D78)-1),"") -> 5
C80: Här gör du en bedömning av i vilken utsträckning lagar och regler påverkar utvecklingsinsatsens genomförbarhet. | D80: Mycket hög | E80: De juridiska förutsättningarna är tydligt kartlagda, och det finns inga juridiska hinder för att åstadkomma utvecklingsinsatsens avsedda förändring.
D81: Hög | E81: De juridiska förutsättningarna är kartlagda. Det finns enbart något enstaka juridiskt hinder för att åstadkomma utvecklingsinsatsens avsedda förändring. Dessa hinder förväntas kunna överbryggas på ett enkelt sätt.
D82: Medel | E82: Det finns kännedom om de juridiska förutsättningarna. Det finns ett eller flera juridiska hinder för att åstadkomma utvecklingsinsatsens avsedda förändring. Dessa hinder är inte helt oproblematiska, men förväntas likväl kunna överbryggas.
D83: Låg | E83: Kännedomen om de juridiska förutsättningarna är bristfällig, alternativt det finns ett eller flera juridiska hinder för att åstadkomma utvecklingsinsatsens avsedda förändring (som förväntas bli svåra att överbrygga).
D84: Mycket låg | E84: Det saknas helt kännedom om de juridiska förutsättningarna, alternativt det finns flera juridiska hinder för att åstadkomma utvecklingsinsatsens avsedda förändring. Dessa hinder kan inte överbryggas.
C86: Parameter | D86: Gör bedömning nedan | E86: Beskriv motiveringen kortfattat | F86: Värde
C87: Finansiering | D87: 3: Medel | F87: =IFERROR(1*LEFT(D87,FIND(":",D87)-1),"") -> 3
C89: Här gör du en bedömning av i vilken utsträckning finansieringen av utvecklingsinsatsen påverkar dess genomförbarhet. | D89: Mycket hög
D90: Hög | E90: Finansieringen är klar för hela projekt-/utvecklingsarbetet och preliminärt för införandet
D91: Medel | E91: Finansieringen är godkänd för hela projektet men tilldelning sker på årsbasis
D92: Låg | E92: Finansieringen är inte helt klar men det finns positiva utsikter
D93: Mycket låg | E93: Finansieringen är inte klar
C95: Parameter | F95: Värde
C96: Sammantagen bedömning av rikser och hinder | F96: =IFERROR(1*LEFT('Risk- & Hinderanalys'!E29,FIND(":",'Risk- & Hinderanalys'!E29)-1),"") -> 
C98: Värdet baseras på den bedömning som är gjort i fliken Hinderanalys och fylls i automatiskt när risk- & hinderanalysfliken har fyllts i

Sheet Risk- & Hinderanalys
C1: RISK- OCH HINDERANALYS | E1: Denna risk- och hinderanalys utgör en del av genomförbarhetsanalysen. Risk- och hinderanalysen syftar till att fånga risker och hinder kopplat till strävan efter att åstadkomma utvecklingsinsatsens avseedda förändringar.
E2: Har riskanalysen genomförts tidigare i en annan mall, behöver inte enskilda risker redovisas i tabellen. I sådana fall, ska den riskanalysen bifogas business case.et. Däremot behöver man fylla i den sammantagna bedömningen av risker och hinder längst ned, under tabellen.
E3: En sammantagen bedömning av risker och hinder görs för att få fram ett värde till parameter 11 ("Sammantagen bedömning av risker och hinder") i genomförbarhetsanalysen, vilket påverkar det summerade värdet för genomförbarhetsanalysen.
D5: Beskriv kortfattat risken eller hindret | E5: Ange sannolikheten att risken inträffar/hindret uppstår | F5: Beskriv konsekvensen av att risken inträffar/hindret uppstår | G5: Ange vilken kategori som kan beskriva konsekvensen/risken bäst | H5: Ange hur allvarlig konsekvensen av att risken inträffar/hindret uppstår är för utvecklingsinsatsen
C6: ID | D6: Risk och/eller hinder | E6: Sannolikhet | F6: Konsekvens | G6: Konsekvenskategori | H6: Konsekvens | I6: Riskvärde
C7: 1 | D7: Patienten saknar bankid för inloggning på 1177 (86% av befolkningen har bankid) | E7: 2: Låg | F7: Patienten kan ej svara på enkät på 1177. Främst ett problem bland ungdomar och äldre över 70 år. Finns möjlighet att skaffa Freija eID+ för inloggning. | G7: Hindrar nyttohemtagningen | H7: 3: Hög | I7: =IFERROR(LEFT(E7,FIND(":",E7)-1)*LEFT(H7,FIND(":",H7)-1),"") -> 6
C8: 2 | D8: Patienten har inte aktiverat avisering (SMS/e-post) för 1177 inkorgen (70% av befolkningen i Västerbotten har aktivt konto, ca 55% av dessa har avisering) | E8: 3: Hög | F8: Alla patienter får inte avisering om att det finns en patientenkät att besvara på 1177. Avisering behöver ske på annat sätt. | G8: Hindrar nyttohemtagningen | H8: 2: Låg | I8: =IFERROR(LEFT(E8,FIND(":",E8)-1)*LEFT(H8,FIND(":",H8)-1),"") -> 6
C9: 3 | D9: Begränsad möjlighet för ungdomar 13-17 år att skaffa bankid (olika banker har olika regler, 67% av ungdomar i detta åldersintervall har bankid) | E9: 3: Hög | F9: Patienten kan ej svara på enkät på 1177 med BankID. Finns möjlighet att skaffa Freija eID+ för dessa ungdomar. | G9: Hindrar nyttohemtagningen | H9: 3: Hög | I9: 9
C10: 4 | D10: Om kostnader belastar verksamheterna kan de avstå från att utveckla digitala patientenkäter | E10: 2: Låg | F10: Pappersenkäter fortsätter användas | G10: Hindrar nyttohemtagningen | H10: 3: Hög | I10: 6
C11: 5 | D11: Medarbetare tar inte till sig det nya arbetssättet med digitala patientenkäter | E11: 2: Låg | F11: Pappersenkäter fortsätter användas | G11: Hindrar nyttohemtagningen | H11: 3: Hög | I11: 6
C12: 6
C13: 7
C14: 8
C15: 9
C16: 10
C17: 11
C18: 12
C19: 13
C20: 14
C21: 15
C22: 16
C23: 17
C24: 18
C25: 19
C26: 20
D28: Gör en sammantagen bedömning av risker och hinder för att åstadkomma de avsedda föändringarna med utvecklingsinsatsen
D29: Sammantagen bedömning av risker och hinder
G31: =IFERROR(1*LEFT(D72,FIND(":",D72)-1),"") -> 

Sheet Business Case
AU1: BUSINESS CASE
C2: TOTAL KOSTNAD | J2: TOTAL NYTTA | Q2: NETTONYTTA | X2: NPV | AE2: ROI | AK2: PAYBACK
C3: =ABS(TotalKostnad) -> 916 | J3: =TotalNytta -> 6,400 | Q3: =TotalNettoNytta -> 5,484 | X3: =NPV -> 5,327 | AE3: =IF(-TotalKostnad=0,0,TotalNettoNytta/-TotalKostnad) -> 599% | AK3: =IF(ISNUMBER(Payback), ROUND(Payback,1) & " år (" & FLOOR(Startår + Payback,1) & ")",Payback) -> 1 år (2021) | AU3: Titel: | AV3: =Grunddata!E4 -> Digitala patientenkäter
C4: TKR | J4: TKR | Q4: TKR | X4: TKR
C6: ANGELÄGENHET | J6: GENOMFÖRBARHET | Q6: KALKYLPERIOD | AU6: Kalkylansviarg: | AV6: =KalkylAnsvarig -> Jim Johansson
C7: =TotalAngelägenhet -> 3.8 | J7: =TotalGenomförbarhet -> 3.4 | Q7: =Grunddata!D12 & " - " & Grunddata!D12+Grunddata!D13-1 -> 2020 - 2025 | AU7: Kalkyldatum: | AV7: 2017-12-08
C8: FRÅN 1 TILL 5 | J8: FRÅN 1 TILL 5 | AU8: Kalkylversion: | AV8: 4.0
C10: KOSTNAD PER INTRESSENT (TKR) | X10: EKONOMISK NYTTA PER INTRESSENT (TKR) | AU10: LÖNSAMHETSKALKYL
AU12: TKR | AV12: =Grunddata!$D$12 -> 2020 | AW12: =AV12+1 -> 2021 | AX12: 2022 | AY12: 2023 | AZ12: 2024 | BA12: 2025 | BB12: 2026 | BC12: 2027 | BD12: 2028 | BE12: 2029 | BF12: Summa
AU13: Nytta | AV13: =SUM(AV14:AV22) -> 500 | AW13: 1,180 | AX13: 1,180 | AY13: 1,180 | AZ13: 1,180 | BA13: 1,180 | BB13: 0 | BC13: 0 | BD13: 0 | BE13: 0 | BF13: =SUM(AV13:BE13) -> 6,400
AT14: + | AU14: ='-Admin-'!F7 -> Reducerad personalkostnad | AV14: =SUMIF('Ekonomiska nyttor'!$AT$7:$AT$21,'Business Case'!$AU14,'Ekonomiska nyttor'!AD$7:AD$21) -> 430 | AW14: =SUMIF('Ekonomiska nyttor'!$AT$7:$AT$21,'Business Case'!$AU14,'Ekonomiska nyttor'!AE$7:AE$21) -> 935 | AX14: =SUMIF('Ekonomiska nyttor'!$AT$7:$AT$21,'Business Case'!$AU14,'Ekonomiska nyttor'!AF$7:AF$21) -> 935 | AY14: =SUMIF('Ekonomiska nyttor'!$AT$7:$AT$21,'Business Case'!$AU14,'Ekonomiska nyttor'!AG$7:AG$21) -> 935 | AZ14: =SUMIF('Ekonomiska nyttor'!$AT$7:$AT$21,'Business Case'!$AU14,'Ekonomiska nyttor'!AH$7:AH$21) -> 935 | BA14: =SUMIF('Ekonomiska nyttor'!$AT$7:$AT$21,'Business Case'!$AU14,'Ekonomiska nyttor'!AI$7:AI$21) -> 935 | BB14: =SUMIF('Ekonomiska nyttor'!$AT$7:$AT$21,'Business Case'!$AU14,'Ekonomiska nyttor'!AJ$7:AJ$21) -> 0 | BC14: =SUMIF('Ekonomiska nyttor'!$AT$7:$AT$21,'Business Case'!$AU14,'Ekonomiska nyttor'!AK$7:AK$21) -> 0 | BD14: =SUMIF('Ekonomiska nyttor'!$AT$7:$AT$21,'Business Case'!$AU14,'Ekonomiska nyttor'!AL$7:AL$21) -> 0 | BE14: =SUMIF('Ekonomiska nyttor'!$AT$7:$AT$21,'Business Case'!$AU14,'Ekonomiska nyttor'!AM$7:AM$21) -> 0 | BF14: 5,105
AT15: + | AU15: ='-Admin-'!F8 -> Reducerad lokalkostnad | AV15: =SUMIF('Ekonomiska nyttor'!$AT$7:$AT$21,'Business Case'!$AU15,'Ekonomiska nyttor'!AD$7:AD$21) -> 0 | AW15: =SUMIF('Ekonomiska nyttor'!$AT$7:$AT$21,'Business Case'!$AU15,'Ekonomiska nyttor'!AE$7:AE$21) -> 0 | AX15: =SUMIF('Ekonomiska nyttor'!$AT$7:$AT$21,'Business Case'!$AU15,'Ekonomiska nyttor'!AF$7:AF$21) -> 0 | AY15: =SUMIF('Ekonomiska nyttor'!$AT$7:$AT$21,'Business Case'!$AU15,'Ekonomiska nyttor'!AG$7:AG$21) -> 0 | AZ15: =SUMIF('Ekonomiska nyttor'!$AT$7:$AT$21,'Business Case'!$AU15,'Ekonomiska nyttor'!AH$7:AH$21) -> 0 | BA15: =SUMIF('Ekonomiska nyttor'!$AT$7:$AT$21,'Business Case'!$AU15,'Ekonomiska nyttor'!AI$7:AI$21) -> 0 | BB15: =SUMIF('Ekonomiska nyttor'!$AT$7:$AT$21,'Business Case'!$AU15,'Ekonomiska nyttor'!AJ$7:AJ$21) -> 0 | BC15: =SUMIF('Ekonomiska nyttor'!$AT$7:$AT$21,'Business Case'!$AU15,'Ekonomiska nyttor'!AK$7:AK$21) -> 0 | BD15: =SUMIF('Ekonomiska nyttor'!$AT$7:$AT$21,'Business Case'!$AU15,'Ekonomiska nyttor'!AL$7:AL$21) -> 0 | BE15: =SUMIF('Ekonomiska nyttor'!$AT$7:$AT$21,'Business Case'!$AU15,'Ekonomiska nyttor'!AM$7:AM$21) -> 0 | BF15: 0
AT16: + | AU16: ='-Admin-'!F9 -> Reducerad it-kostnad | AV16: =SUMIF('Ekonomiska nyttor'!$AT$7:$AT$21,'Business Case'!$AU16,'Ekonomiska nyttor'!AD$7:AD$21) -> 0 | AW16: =SUMIF('Ekonomiska nyttor'!$AT$7:$AT$21,'Business Case'!$AU16,'Ekonomiska nyttor'!AE$7:AE$21) -> 0 | AX16: =SUMIF('Ekonomiska nyttor'!$AT$7:$AT$21,'Business Case'!$AU16,'Ekonomiska nyttor'!AF$7:AF$21) -> 0 | AY16: =SUMIF('Ekonomiska nyttor'!$AT$7:$AT$21,'Business Case'!$AU16,'Ekonomiska nyttor'!AG$7:AG$21) -> 0 | AZ16: =SUMIF('Ekonomiska nyttor'!$AT$7:$AT$21,'Business Case'!$AU16,'Ekonomiska nyttor'!AH$7:AH$21) -> 0 | BA16: =SUMIF('Ekonomiska nyttor'!$AT$7:$AT$21,'Business Case'!$AU16,'Ekonomiska nyttor'!AI$7:AI$21) -> 0 | BB16: =SUMIF('Ekonomiska nyttor'!$AT$7:$AT$21,'Business Case'!$AU16,'Ekonomiska nyttor'!AJ$7:AJ$21) -> 0 | BC16: =SUMIF('Ekonomiska nyttor'!$AT$7:$AT$21,'Business Case'!$AU16,'Ekonomiska nyttor'!AK$7:AK$21) -> 0 | BD16: =SUMIF('Ekonomiska nyttor'!$AT$7:$AT$21,'Business Case'!$AU16,'Ekonomiska nyttor'!AL$7:AL$21) -> 0 | BE16: =SUMIF('Ekonomiska nyttor'!$AT$7:$AT$21,'Business Case'!$AU16,'Ekonomiska nyttor'!AM$7:AM$21) -> 0 | BF16: 0
AT17: + | AU17: ='-Admin-'!F10 -> Reducerad kvalitetsbristkostnader | AV17: =SUMIF('Ekonomiska nyttor'!$AT$7:$AT$21,'Business Case'!$AU17,'Ekonomiska nyttor'!AD$7:AD$21) -> 0 | AW17: =SUMIF('Ekonomiska nyttor'!$AT$7:$AT$21,'Business Case'!$AU17,'Ekonomiska nyttor'!AE$7:AE$21) -> 0 | AX17: =SUMIF('Ekonomiska nyttor'!$AT$7:$AT$21,'Business Case'!$AU17,'Ekonomiska nyttor'!AF$7:AF$21) -> 0 | AY17: =SUMIF('Ekonomiska nyttor'!$AT$7:$AT$21,'Business Case'!$AU17,'Ekonomiska nyttor'!AG$7:AG$21) -> 0 | AZ17: =SUMIF('Ekonomiska nyttor'!$AT$7:$AT$21,'Business Case'!$AU17,'Ekonomiska nyttor'!AH$7:AH$21) -> 0 | BA17: =SUMIF('Ekonomiska nyttor'!$AT$7:$AT$21,'Business Case'!$AU17,'Ekonomiska nyttor'!AI$7:AI$21) -> 0 | BB17: =SUMIF('Ekonomiska nyttor'!$AT$7:$AT$21,'Business Case'!$AU17,'Ekonomiska nyttor'!AJ$7:AJ$21) -> 0 | BC17: =SUMIF('Ekonomiska nyttor'!$AT$7:$AT$21,'Business Case'!$AU17,'Ekonomiska nyttor'!AK$7:AK$21) -> 0 | BD17: =SUMIF('Ekonomiska nyttor'!$AT$7:$AT$21,'Business Case'!$AU17,'Ekonomiska nyttor'!AL$7:AL$21) -> 0 | BE17: =SUMIF('Ekonomiska nyttor'!$AT$7:$AT$21,'Business Case'!$AU17,'Ekonomiska nyttor'!AM$7:AM$21) -> 0 | BF17: 0
AT18: + | AU18: ='-Admin-'!F11 -> Reducerad admin.kostnader | AV18: =SUMIF('Ekonomiska nyttor'!$AT$7:$AT$21,'Business Case'!$AU18,'Ekonomiska nyttor'!AD$7:AD$21) -> 0 | AW18: =SUMIF('Ekonomiska nyttor'!$AT$7:$AT$21,'Business Case'!$AU18,'Ekonomiska nyttor'!AE$7:AE$21) -> 0 | AX18: =SUMIF('Ekonomiska nyttor'!$AT$7:$AT$21,'Business Case'!$AU18,'Ekonomiska nyttor'!AF$7:AF$21) -> 0 | AY18: =SUMIF('Ekonomiska nyttor'!$AT$7:$AT$21,'Business Case'!$AU18,'Ekonomiska nyttor'!AG$7:AG$21) -> 0 | AZ18: =SUMIF('Ekonomiska nyttor'!$AT$7:$AT$21,'Business Case'!$AU18,'Ekonomiska nyttor'!AH$7:AH$21) -> 0 | BA18: =SUMIF('Ekonomiska nyttor'!$AT$7:$AT$21,'Business Case'!$AU18,'Ekonomiska nyttor'!AI$7:AI$21) -> 0 | BB18: =SUMIF('Ekonomiska nyttor'!$AT$7:$AT$21,'Business Case'!$AU18,'Ekonomiska nyttor'!AJ$7:AJ$21) -> 0 | BC18: =SUMIF('Ekonomiska nyttor'!$AT$7:$AT$21,'Business Case'!$AU18,'Ekonomiska nyttor'!AK$7:AK$21) -> 0 | BD18: =SUMIF('Ekonomiska nyttor'!$AT$7:$AT$21,'Business Case'!$AU18,'Ekonomiska nyttor'!AL$7:AL$21) -> 0 | BE18: =SUMIF('Ekonomiska nyttor'!$AT$7:$AT$21,'Business Case'!$AU18,'Ekonomiska nyttor'!AM$7:AM$21) -> 0 | BF18: 0
AT19: + | AU19: ='-Admin-'!F12 -> Övriga besparingar | AV19: =SUMIF('Ekonomiska nyttor'!$AT$7:$AT$21,'Business Case'!$AU19,'Ekonomiska nyttor'!AD$7:AD$21) -> 70 | AW19: =SUMIF('Ekonomiska nyttor'!$AT$7:$AT$21,'Business Case'!$AU19,'Ekonomiska nyttor'!AE$7:AE$21) -> 245 | AX19: =SUMIF('Ekonomiska nyttor'!$AT$7:$AT$21,'Business Case'!$AU19,'Ekonomiska nyttor'!AF$7:AF$21) -> 245 | AY19: =SUMIF('Ekonomiska nyttor'!$AT$7:$AT$21,'Business Case'!$AU19,'Ekonomiska nyttor'!AG$7:AG$21) -> 245 | AZ19: =SUMIF('Ekonomiska nyttor'!$AT$7:$AT$21,'Business Case'!$AU19,'Ekonomiska nyttor'!AH$7:AH$21) -> 245 | BA19: =SUMIF('Ekonomiska nyttor'!$AT$7:$AT$21,'Business Case'!$AU19,'Ekonomiska nyttor'!AI$7:AI$21) -> 245 | BB19: =SUMIF('Ekonomiska nyttor'!$AT$7:$AT$21,'Business Case'!$AU19,'Ekonomiska nyttor'!AJ$7:AJ$21) -> 0 | BC19: =SUMIF('Ekonomiska nyttor'!$AT$7:$AT$21,'Business Case'!$AU19,'Ekonomiska nyttor'!AK$7:AK$21) -> 0 | BD19: =SUMIF('Ekonomiska nyttor'!$AT$7:$AT$21,'Business Case'!$AU19,'Ekonomiska nyttor'!AL$7:AL$21) -> 0 | BE19: =SUMIF('Ekonomiska nyttor'!$AT$7:$AT$21,'Business Case'!$AU19,'Ekonomiska nyttor'!AM$7:AM$21) -> 0 | BF19: 1,295
AT20: + | AU20: ='-Admin-'!F13 -> Ökade intäkter | AV20: =SUMIF('Ekonomiska nyttor'!$AT$7:$AT$21,'Business Case'!$AU20,'Ekonomiska nyttor'!AD$7:AD$21) -> 0 | AW20: =SUMIF('Ekonomiska nyttor'!$AT$7:$AT$21,'Business Case'!$AU20,'Ekonomiska nyttor'!AE$7:AE$21) -> 0 | AX20: =SUMIF('Ekonomiska nyttor'!$AT$7:$AT$21,'Business Case'!$AU20,'Ekonomiska nyttor'!AF$7:AF$21) -> 0 | AY20: =SUMIF('Ekonomiska nyttor'!$AT$7:$AT$21,'Business Case'!$AU20,'Ekonomiska nyttor'!AG$7:AG$21) -> 0 | AZ20: =SUMIF('Ekonomiska nyttor'!$AT$7:$AT$21,'Business Case'!$AU20,'Ekonomiska nyttor'!AH$7:AH$21) -> 0 | BA20: =SUMIF('Ekonomiska nyttor'!$AT$7:$AT$21,'Business Case'!$AU20,'Ekonomiska nyttor'!AI$7:AI$21) -> 0 | BB20: =SUMIF('Ekonomiska nyttor'!$AT$7:$AT$21,'Business Case'!$AU20,'Ekonomiska nyttor'!AJ$7:AJ$21) -> 0 | BC20: =SUMIF('Ekonomiska nyttor'!$AT$7:$AT$21,'Business Case'!$AU20,'Ekonomiska nyttor'!AK$7:AK$21) -> 0 | BD20: =SUMIF('Ekonomiska nyttor'!$AT$7:$AT$21,'Business Case'!$AU20,'Ekonomiska nyttor'!AL$7:AL$21) -> 0 | BE20: =SUMIF('Ekonomiska nyttor'!$AT$7:$AT$21,'Business Case'!$AU20,'Ekonomiska nyttor'!AM$7:AM$21) -> 0 | BF20: 0
AT21: + | AU21: ='-Admin-'!F14 -> Oklassificerad 5 | AV21: =SUMIF('Ekonomiska nyttor'!$AT$7:$AT$21,'Business Case'!$AU21,'Ekonomiska nyttor'!AD$7:AD$21) -> 0 | AW21: =SUMIF('Ekonomiska nyttor'!$AT$7:$AT$21,'Business Case'!$AU21,'Ekonomiska nyttor'!AE$7:AE$21) -> 0 | AX21: =SUMIF('Ekonomiska nyttor'!$AT$7:$AT$21,'Business Case'!$AU21,'Ekonomiska nyttor'!AF$7:AF$21) -> 0 | AY21: =SUMIF('Ekonomiska nyttor'!$AT$7:$AT$21,'Business Case'!$AU21,'Ekonomiska nyttor'!AG$7:AG$21) -> 0 | AZ21: =SUMIF('Ekonomiska nyttor'!$AT$7:$AT$21,'Business Case'!$AU21,'Ekonomiska nyttor'!AH$7:AH$21) -> 0 | BA21: =SUMIF('Ekonomiska nyttor'!$AT$7:$AT$21,'Business Case'!$AU21,'Ekonomiska nyttor'!AI$7:AI$21) -> 0 | BB21: =SUMIF('Ekonomiska nyttor'!$AT$7:$AT$21,'Business Case'!$AU21,'Ekonomiska nyttor'!AJ$7:AJ$21) -> 0 | BC21: =SUMIF('Ekonomiska nyttor'!$AT$7:$AT$21,'Business Case'!$AU21,'Ekonomiska nyttor'!AK$7:AK$21) -> 0 | BD21: =SUMIF('Ekonomiska nyttor'!$AT$7:$AT$21,'Business Case'!$AU21,'Ekonomiska nyttor'!AL$7:AL$21) -> 0 | BE21: =SUMIF('Ekonomiska nyttor'!$AT$7:$AT$21,'Business Case'!$AU21,'Ekonomiska nyttor'!AM$7:AM$21) -> 0 | BF21: 0
AT22: + | AU22: (blank) | AV22: =SUMIF('Ekonomiska nyttor'!$AT$7:$AT$21,'Business Case'!$AU22,'Ekonomiska nyttor'!AD$7:AD$21) -> 0 | AW22: =SUMIF('Ekonomiska nyttor'!$AT$7:$AT$21,'Business Case'!$AU22,'Ekonomiska nyttor'!AE$7:AE$21) -> 0 | AX22: =SUMIF('Ekonomiska nyttor'!$AT$7:$AT$21,'Business Case'!$AU22,'Ekonomiska nyttor'!AF$7:AF$21) -> 0 | AY22: =SUMIF('Ekonomiska nyttor'!$AT$7:$AT$21,'Business Case'!$AU22,'Ekonomiska nyttor'!AG$7:AG$21) -> 0 | AZ22: =SUMIF('Ekonomiska nyttor'!$AT$7:$AT$21,'Business Case'!$AU22,'Ekonomiska nyttor'!AH$7:AH$21) -> 0 | BA22: =SUMIF('Ekonomiska nyttor'!$AT$7:$AT$21,'Business Case'!$AU22,'Ekonomiska nyttor'!AI$7:AI$21) -> 0 | BB22: =SUMIF('Ekonomiska nyttor'!$AT$7:$AT$21,'Business Case'!$AU22,'Ekonomiska nyttor'!AJ$7:AJ$21) -> 0 | BC22: =SUMIF('Ekonomiska nyttor'!$AT$7:$AT$21,'Business Case'!$AU22,'Ekonomiska nyttor'!AK$7:AK$21) -> 0 | BD22: =SUMIF('Ekonomiska nyttor'!$AT$7:$AT$21,'Business Case'!$AU22,'Ekonomiska nyttor'!AL$7:AL$21) -> 0 | BE22: =SUMIF('Ekonomiska nyttor'!$AT$7:$AT$21,'Business Case'!$AU22,'Ekonomiska nyttor'!AM$7:AM$21) -> 0 | BF22: 0
AU24: Kostnad | AV24: =SUM(AV25:AV30) -> -356 | AW24: -112 | AX24: -112 | AY24: -112 | AZ24: -112 | BA24: -112 | BB24: 0 | BC24: 0 | BD24: 0 | BE24: 0 | BF24: =SUM(AV24:BE24) -> -916
AT25: - | AU25: ='-Admin-'!F20 -> Utredning | AV25: =-SUMIF(Kostnader!$AN$6:$AN$20,'Business Case'!$AU25,Kostnader!X$6:X$20) -> 0 | AW25: =-SUMIF(Kostnader!$AN$6:$AN$20,'Business Case'!$AU25,Kostnader!Y$6:Y$20) -> 0 | AX25: =-SUMIF(Kostnader!$AN$6:$AN$20,'Business Case'!$AU25,Kostnader!Z$6:Z$20) -> 0 | AY25: =-SUMIF(Kostnader!$AN$6:$AN$20,'Business Case'!$AU25,Kostnader!AA$6:AA$20) -> 0 | AZ25: =-SUMIF(Kostnader!$AN$6:$AN$20,'Business Case'!$AU25,Kostnader!AB$6:AB$20) -> 0 | BA25: =-SUMIF(Kostnader!$AN$6:$AN$20,'Business Case'!$AU25,Kostnader!AC$6:AC$20) -> 0 | BB25: =-SUMIF(Kostnader!$AN$6:$AN$20,'Business Case'!$AU25,Kostnader!AD$6:AD$20) -> 0 | BC25: =-SUMIF(Kostnader!$AN$6:$AN$20,'Business Case'!$AU25,Kostnader!AE$6:AE$20) -> 0 | BD25: =-SUMIF(Kostnader!$AN$6:$AN$20,'Business Case'!$AU25,Kostnader!AF$6:AF$20) -> 0 | BE25: =-SUMIF(Kostnader!$AN$6:$AN$20,'Business Case'!$AU25,Kostnader!AG$6:AG$20) -> 0 | BF25: 0
AT26: - | AU26: ='-Admin-'!F21 -> Investering | AV26: =-SUMIF(Kostnader!$AN$6:$AN$20,'Business Case'!$AU26,Kostnader!X$6:X$20) -> 0 | AW26: =-SUMIF(Kostnader!$AN$6:$AN$20,'Business Case'!$AU26,Kostnader!Y$6:Y$20) -> 0 | AX26: =-SUMIF(Kostnader!$AN$6:$AN$20,'Business Case'!$AU26,Kostnader!Z$6:Z$20) -> 0 | AY26: =-SUMIF(Kostnader!$AN$6:$AN$20,'Business Case'!$AU26,Kostnader!AA$6:AA$20) -> 0 | AZ26: =-SUMIF(Kostnader!$AN$6:$AN$20,'Business Case'!$AU26,Kostnader!AB$6:AB$20) -> 0 | BA26: =-SUMIF(Kostnader!$AN$6:$AN$20,'Business Case'!$AU26,Kostnader!AC$6:AC$20) -> 0 | BB26: =-SUMIF(Kostnader!$AN$6:$AN$20,'Business Case'!$AU26,Kostnader!AD$6:AD$20) -> 0 | BC26: =-SUMIF(Kostnader!$AN$6:$AN$20,'Business Case'!$AU26,Kostnader!AE$6:AE$20) -> 0 | BD26: =-SUMIF(Kostnader!$AN$6:$AN$20,'Business Case'!$AU26,Kostnader!AF$6:AF$20) -> 0 | BE26: =-SUMIF(Kostnader!$AN$6:$AN$20,'Business Case'!$AU26,Kostnader!AG$6:AG$20) -> 0 | BF26: 0
C27: INDIVIDUELLA EKONOMISKA NYTTOR (NYTTA @ INTRESSENT) (TKR) | X27: INDIVIDUELLA KVALITATIVA NYTTOR (NYTTA @ INTRESSENT) | AT27: - | AU27: ='-Admin-'!F22 -> Införande | AV27: =-SUMIF(Kostnader!$AN$6:$AN$20,'Business Case'!$AU27,Kostnader!X$6:X$20) -> -356 | AW27: =-SUMIF(Kostnader!$AN$6:$AN$20,'Business Case'!$AU27,Kostnader!Y$6:Y$20) -> 0 | AX27: =-SUMIF(Kostnader!$AN$6:$AN$20,'Business Case'!$AU27,Kostnader!Z$6:Z$20) -> 0 | AY27: =-SUMIF(Kostnader!$AN$6:$AN$20,'Business Case'!$AU27,Kostnader!AA$6:AA$20) -> 0 | AZ27: =-SUMIF(Kostnader!$AN$6:$AN$20,'Business Case'!$AU27,Kostnader!AB$6:AB$20) -> 0 | BA27: =-SUMIF(Kostnader!$AN$6:$AN$20,'Business Case'!$AU27,Kostnader!AC$6:AC$20) -> 0 | BB27: =-SUMIF(Kostnader!$AN$6:$AN$20,'Business Case'!$AU27,Kostnader!AD$6:AD$20) -> 0 | BC27: =-SUMIF(Kostnader!$AN$6:$AN$20,'Business Case'!$AU27,Kostnader!AE$6:AE$20) -> 0 | BD27: =-SUMIF(Kostnader!$AN$6:$AN$20,'Business Case'!$AU27,Kostnader!AF$6:AF$20) -> 0 | BE27: =-SUMIF(Kostnader!$AN$6:$AN$20,'Business Case'!$AU27,Kostnader!AG$6:AG$20) -> 0 | BF27: -356
AT28: - | AU28: ='-Admin-'!F23 -> Drift/Förvaltning | AV28: =-SUMIF(Kostnader!$AN$6:$AN$20,'Business Case'!$AU28,Kostnader!X$6:X$20) -> 0 | AW28: =-SUMIF(Kostnader!$AN$6:$AN$20,'Business Case'!$AU28,Kostnader!Y$6:Y$20) -> -112 | AX28: =-SUMIF(Kostnader!$AN$6:$AN$20,'Business Case'!$AU28,Kostnader!Z$6:Z$20) -> -112 | AY28: =-SUMIF(Kostnader!$AN$6:$AN$20,'Business Case'!$AU28,Kostnader!AA$6:AA$20) -> -112 | AZ28: =-SUMIF(Kostnader!$AN$6:$AN$20,'Business Case'!$AU28,Kostnader!AB$6:AB$20) -> -112 | BA28: =-SUMIF(Kostnader!$AN$6:$AN$20,'Business Case'!$AU28,Kostnader!AC$6:AC$20) -> -112 | BB28: =-SUMIF(Kostnader!$AN$6:$AN$20,'Business Case'!$AU28,Kostnader!AD$6:AD$20) -> 0 | BC28: =-SUMIF(Kostnader!$AN$6:$AN$20,'Business Case'!$AU28,Kostnader!AE$6:AE$20) -> 0 | BD28: =-SUMIF(Kostnader!$AN$6:$AN$20,'Business Case'!$AU28,Kostnader!AF$6:AF$20) -> 0 | BE28: =-SUMIF(Kostnader!$AN$6:$AN$20,'Business Case'!$AU28,Kostnader!AG$6:AG$20) -> 0 | BF28: -560
AT29: - | AU29: ='-Admin-'!F24 -> Annan | AV29: =-SUMIF(Kostnader!$AN$6:$AN$20,'Business Case'!$AU29,Kostnader!X$6:X$20) -> 0 | AW29: =-SUMIF(Kostnader!$AN$6:$AN$20,'Business Case'!$AU29,Kostnader!Y$6:Y$20) -> 0 | AX29: =-SUMIF(Kostnader!$AN$6:$AN$20,'Business Case'!$AU29,Kostnader!Z$6:Z$20) -> 0 | AY29: =-SUMIF(Kostnader!$AN$6:$AN$20,'Business Case'!$AU29,Kostnader!AA$6:AA$20) -> 0 | AZ29: =-SUMIF(Kostnader!$AN$6:$AN$20,'Business Case'!$AU29,Kostnader!AB$6:AB$20) -> 0 | BA29: =-SUMIF(Kostnader!$AN$6:$AN$20,'Business Case'!$AU29,Kostnader!AC$6:AC$20) -> 0 | BB29: =-SUMIF(Kostnader!$AN$6:$AN$20,'Business Case'!$AU29,Kostnader!AD$6:AD$20) -> 0 | BC29: =-SUMIF(Kostnader!$AN$6:$AN$20,'Business Case'!$AU29,Kostnader!AE$6:AE$20) -> 0 | BD29: =-SUMIF(Kostnader!$AN$6:$AN$20,'Business Case'!$AU29,Kostnader!AF$6:AF$20) -> 0 | BE29: =-SUMIF(Kostnader!$AN$6:$AN$20,'Business Case'!$AU29,Kostnader!AG$6:AG$20) -> 0 | BF29: 0
AT30: - | AU30: (blank) | AV30: =-SUMIF(Kostnader!$AN$6:$AN$20,'Business Case'!$AU30,Kostnader!X$6:X$20) -> 0 | AW30: =-SUMIF(Kostnader!$AN$6:$AN$20,'Business Case'!$AU30,Kostnader!Y$6:Y$20) -> 0 | AX30: =-SUMIF(Kostnader!$AN$6:$AN$20,'Business Case'!$AU30,Kostnader!Z$6:Z$20) -> 0 | AY30: =-SUMIF(Kostnader!$AN$6:$AN$20,'Business Case'!$AU30,Kostnader!AA$6:AA$20) -> 0 | AZ30: =-SUMIF(Kostnader!$AN$6:$AN$20,'Business Case'!$AU30,Kostnader!AB$6:AB$20) -> 0 | BA30: =-SUMIF(Kostnader!$AN$6:$AN$20,'Business Case'!$AU30,Kostnader!AC$6:AC$20) -> 0 | BB30: =-SUMIF(Kostnader!$AN$6:$AN$20,'Business Case'!$AU30,Kostnader!AD$6:AD$20) -> 0 | BC30: =-SUMIF(Kostnader!$AN$6:$AN$20,'Business Case'!$AU30,Kostnader!AE$6:AE$20) -> 0 | BD30: =-SUMIF(Kostnader!$AN$6:$AN$20,'Business Case'!$AU30,Kostnader!AF$6:AF$20) -> 0 | BE30: =-SUMIF(Kostnader!$AN$6:$AN$20,'Business Case'!$AU30,Kostnader!AG$6:AG$20) -> 0 | BF30: 0
AT32: = | AU32: Nettonytta | AV32: =AV13+AV24 -> 144 | AW32: 1,068 | AX32: 1,068 | AY32: 1,068 | AZ32: 1,068 | BA32: 1,068 | BB32: 0 | BC32: 0 | BD32: 0 | BE32: 0 | BF32: =SUM(AV32:BE32) -> 5,484
AT33: = | AU33: Ack. Nettonytta | AV33: =IF(AV12=Grunddata!$D$12,'Business Case'!AV32,'Business Case'!AV32+#REF!) -> 144 | AW33: =IF(AW12=Grunddata!$D$12,'Business Case'!AW32,'Business Case'!AW32+'Business Case'!AV33) -> 1,212 | AX33: =IF(AX12=Grunddata!$D$12,'Business Case'!AX32,'Business Case'!AX32+'Business Case'!AW33) -> 2,280 | AY33: =IF(AY12=Grunddata!$D$12,'Business Case'!AY32,'Business Case'!AY32+'Business Case'!AX33) -> 3,348 | AZ33: =IF(AZ12=Grunddata!$D$12,'Business Case'!AZ32,'Business Case'!AZ32+'Business Case'!AY33) -> 4,416 | BA33: =IF(BA12=Grunddata!$D$12,'Business Case'!BA32,'Business Case'!BA32+'Business Case'!AZ33) -> 5,484 | BB33: =IF(BB12=Grunddata!$D$12,'Business Case'!BB32,'Business Case'!BB32+'Business Case'!BA33) -> 5,484 | BC33: =IF(BC12=Grunddata!$D$12,'Business Case'!BC32,'Business Case'!BC32+'Business Case'!BB33) -> 5,484 | BD33: =IF(BD12=Grunddata!$D$12,'Business Case'!BD32,'Business Case'!BD32+'Business Case'!BC33) -> 5,484 | BE33: =IF(BE12=Grunddata!$D$12,'Business Case'!BE32,'Business Case'!BE32+'Business Case'!BD33) -> 5,484 | BF33: =BE33 -> 5,484
AT35: = | AU35: Diskonterat kassaflöde | AV35: =AV32/(1+Grunddata!$D$14)^(AV12-Grunddata!$D$12) -> 144 | AW35: =AW32/(1+Kalkylränta)^(AW12-Startår) -> 1,057 | AX35: 1,047 | AY35: 1,037 | AZ35: 1,026 | BA35: 1,016 | BB35: 0 | BC35: 0 | BD35: 0 | BE35: 0 | BF35: =SUM(AV35:BE35) -> 5,327
AT36: = | AU36: Ack. diskonterat kassaflöde | AV36: =AV35 -> 144 | AW36: =AV36+AW35 -> 1,201 | AX36: 2,248 | AY36: 3,285 | AZ36: 4,311 | BA36: 5,327 | BB36: 5,327 | BC36: 5,327 | BD36: 5,327 | BE36: 5,327 | BF36: =BE36 -> 5,327
C45: NETTONYTTA PER ÅR (TKR) | AU45: Identifierade risker
AU47: Vad kan inträffa | AX47: Vad är konsekvensen | BB47: Riskvärde
AU48: =IF('Risk- & Hinderanalys'!D7<>"",'Risk- & Hinderanalys'!D7,"") -> Patienten saknar bankid för inloggning på 1177 (86% av befolkningen har bankid) | AX48: =IF('Risk- & Hinderanalys'!G7<>"",'Risk- & Hinderanalys'!G7,"") -> Hindrar nyttohemtagningen | BB48: =IF('Risk- & Hinderanalys'!I7<>"",'Risk- & Hinderanalys'!I7,"") -> 6
AU49: =IF('Risk- & Hinderanalys'!D8<>"",'Risk- & Hinderanalys'!D8,"") -> Patienten har inte aktiverat avisering (SMS/e-post) för 1177 inkorgen (70% av befolkningen i Västerbotten har aktivt konto, ca 55% av dessa har avisering) | AX49: =IF('Risk- & Hinderanalys'!G8<>"",'Risk- & Hinderanalys'!G8,"") -> Hindrar nyttohemtagningen | BB49: =IF('Risk- & Hinderanalys'!I8<>"",'Risk- & Hinderanalys'!I8,"") -> 6
AU50: =IF('Risk- & Hinderanalys'!D9<>"",'Risk- & Hinderanalys'!D9,"") -> Begränsad möjlighet för ungdomar 13-17 år att skaffa bankid (olika banker har olika regler, 67% av ungdomar i detta åldersintervall har bankid) | AX50: =IF('Risk- & Hinderanalys'!G9<>"",'Risk- & Hinderanalys'!G9,"") -> Hindrar nyttohemtagningen | BB50: =IF('Risk- & Hinderanalys'!I9<>"",'Risk- & Hinderanalys'!I9,"") -> 9
AU51: =IF('Risk- & Hinderanalys'!D10<>"",'Risk- & Hinderanalys'!D10,"") -> Om kostnader belastar verksamheterna kan de avstå från att utveckla digitala patientenkäter | AX51: =IF('Risk- & Hinderanalys'!G10<>"",'Risk- & Hinderanalys'!G10,"") -> Hindrar nyttohemtagningen | BB51: =IF('Risk- & Hinderanalys'!I10<>"",'Risk- & Hinderanalys'!I10,"") -> 6
AU52: =IF('Risk- & Hinderanalys'!D11<>"",'Risk- & Hinderanalys'!D11,"") -> Medarbetare tar inte till sig det nya arbetssättet med digitala patientenkäter | AX52: =IF('Risk- & Hinderanalys'!G11<>"",'Risk- & Hinderanalys'!G11,"") -> Hindrar nyttohemtagningen | BB52: =IF('Risk- & Hinderanalys'!I11<>"",'Risk- & Hinderanalys'!I11,"") -> 6
AU53: =IF('Risk- & Hinderanalys'!D12<>"",'Risk- & Hinderanalys'!D12,"") ->  | AX53: =IF('Risk- & Hinderanalys'!G12<>"",'Risk- & Hinderanalys'!G12,"") ->  | BB53: =IF('Risk- & Hinderanalys'!I12<>"",'Risk- & Hinderanalys'!I12,"") -> 
AU54: =IF('Risk- & Hinderanalys'!D13<>"",'Risk- & Hinderanalys'!D13,"") ->  | AX54: =IF('Risk- & Hinderanalys'!G13<>"",'Risk- & Hinderanalys'!G13,"") ->  | BB54: =IF('Risk- & Hinderanalys'!I13<>"",'Risk- & Hinderanalys'!I13,"") -> 
AU55: =IF('Risk- & Hinderanalys'!D14<>"",'Risk- & Hinderanalys'!D14,"") ->  | AX55: =IF('Risk- & Hinderanalys'!G14<>"",'Risk- & Hinderanalys'!G14,"") ->  | BB55: =IF('Risk- & Hinderanalys'!I14<>"",'Risk- & Hinderanalys'!I14,"") -> 
AU56: =IF('Risk- & Hinderanalys'!D15<>"",'Risk- & Hinderanalys'!D15,"") ->  | AX56: =IF('Risk- & Hinderanalys'!G15<>"",'Risk- & Hinderanalys'!G15,"") ->  | BB56: =IF('Risk- & Hinderanalys'!I15<>"",'Risk- & Hinderanalys'!I15,"") -> 
AU57: =IF('Risk- & Hinderanalys'!D16<>"",'Risk- & Hinderanalys'!D16,"") ->  | AX57: =IF('Risk- & Hinderanalys'!G16<>"",'Risk- & Hinderanalys'!G16,"") ->  | BB57: =IF('Risk- & Hinderanalys'!I16<>"",'Risk- & Hinderanalys'!I16,"") -> 
AU58: =IF('Risk- & Hinderanalys'!D17<>"",'Risk- & Hinderanalys'!D17,"") ->  | AX58: =IF('Risk- & Hinderanalys'!G17<>"",'Risk- & Hinderanalys'!G17,"") ->  | BB58: =IF('Risk- & Hinderanalys'!I17<>"",'Risk- & Hinderanalys'!I17,"") -> 
AU59: =IF('Risk- & Hinderanalys'!D18<>"",'Risk- & Hinderanalys'!D18,"") ->  | AX59: =IF('Risk- & Hinderanalys'!G18<>"",'Risk- & Hinderanalys'!G18,"") ->  | BB59: =IF('Risk- & Hinderanalys'!I18<>"",'Risk- & Hinderanalys'!I18,"") -> 
C60: ANTAL KVALITATIVA NYTTOR PER KATEGORI OCH BETYDELSE | X60: OSÄKERHETSBEDÖMNING SÄMST-TROLIGT-BÄST (TKR) | AU60: =IF('Risk- & Hinderanalys'!D19<>"",'Risk- & Hinderanalys'!D19,"") ->  | AX60: =IF('Risk- & Hinderanalys'!G19<>"",'Risk- & Hinderanalys'!G19,"") ->  | BB60: =IF('Risk- & Hinderanalys'!I19<>"",'Risk- & Hinderanalys'!I19,"") -> 
AU61: =IF('Risk- & Hinderanalys'!D20<>"",'Risk- & Hinderanalys'!D20,"") ->  | AX61: =IF('Risk- & Hinderanalys'!G20<>"",'Risk- & Hinderanalys'!G20,"") ->  | BB61: =IF('Risk- & Hinderanalys'!I20<>"",'Risk- & Hinderanalys'!I20,"") -> 
AU62: =IF('Risk- & Hinderanalys'!D21<>"",'Risk- & Hinderanalys'!D21,"") ->  | AX62: =IF('Risk- & Hinderanalys'!G21<>"",'Risk- & Hinderanalys'!G21,"") ->  | BB62: =IF('Risk- & Hinderanalys'!I21<>"",'Risk- & Hinderanalys'!I21,"") -> 
AU63: =IF('Risk- & Hinderanalys'!D22<>"",'Risk- & Hinderanalys'!D22,"") ->  | AX63: =IF('Risk- & Hinderanalys'!G22<>"",'Risk- & Hinderanalys'!G22,"") ->  | BB63: =IF('Risk- & Hinderanalys'!I22<>"",'Risk- & Hinderanalys'!I22,"") -> 
AU64: =IF('Risk- & Hinderanalys'!D23<>"",'Risk- & Hinderanalys'!D23,"") ->  | AX64: =IF('Risk- & Hinderanalys'!G23<>"",'Risk- & Hinderanalys'!G23,"") ->  | BB64: =IF('Risk- & Hinderanalys'!I23<>"",'Risk- & Hinderanalys'!I23,"") -> 
AU65: =IF('Risk- & Hinderanalys'!D24<>"",'Risk- & Hinderanalys'!D24,"") ->  | AX65: =IF('Risk- & Hinderanalys'!G24<>"",'Risk- & Hinderanalys'!G24,"") ->  | BB65: =IF('Risk- & Hinderanalys'!I24<>"",'Risk- & Hinderanalys'!I24,"") -> 
AU66: =IF('Risk- & Hinderanalys'!D25<>"",'Risk- & Hinderanalys'!D25,"") ->  | AX66: =IF('Risk- & Hinderanalys'!G25<>"",'Risk- & Hinderanalys'!G25,"") ->  | BB66: =IF('Risk- & Hinderanalys'!I25<>"",'Risk- & Hinderanalys'!I25,"") -> 
AU67: =IF('Risk- & Hinderanalys'!D26<>"",'Risk- & Hinderanalys'!D26,"") ->  | AX67: =IF('Risk- & Hinderanalys'!G26<>"",'Risk- & Hinderanalys'!G26,"") ->  | BB67: =IF('Risk- & Hinderanalys'!I26<>"",'Risk- & Hinderanalys'!I26,"") -> 
C78: EKONOMISK NYTTA PER KATEGORI (TKR) | X78: KOSTNAD PER KOSTNADSTYP (TKR)
C93: NETTONYTTA, ANGELÄGENHET, GENOMFÖRBARHET (TKR)

Sheet -Admin- (hidden)
C1: ADMIN
C2: I den här fliken administreras samtliga värdemängder. Se systemdokumentationen för instruktioner.
C4: Nytta
J5: OBS. Siffrorna innan semi-kolonet för respektive värde anger beräknat poäng. Formatet i listan nedan måste alltså vara nn:text där nn är den poäng som kopplas till valet.
C6: Enhet | F6: Klassificering Kvantitativ | H6: Klassificering Kvalitativ | J6: Betydelse
C7: tkr (tusen kronor) | F7: Reducerad personalkostnad | H7: Minskad kvalitetsbrister | J7: 1: Mycket låg
C8: Interna timmar | F8: Reducerad lokalkostnad | H8: Snabbare hantering av ärenden | J8: 2: Låg
C9: Externa timmar | F9: Reducerad it-kostnad | H9: Ny funtionalitet/Högre service | J9: 3: Medium
F10: Reducerad kvalitetsbristkostnader | H10: Ökad rättsäkerhet | J10: 4: Hög
F11: Reducerad admin.kostnader | H11: Ökad tillgänglighet | J11: 5: Mycket hög
F12: Övriga besparingar | H12: Ökat förtroende
F13: Ökade intäkter | H13: Ökad insyn
F14: Oklassificerad 5 | H14: Frigjord arbetstid
H15: Annan
C17: Kostnad
C19: Enhet | F19: Kostnadstyp
C20: tkr (tusen kronor) | F20: Utredning
C21: Interna Timmar | F21: Investering
C22: Externa Timmar | F22: Införande
F23: Drift/Förvaltning
F24: Annan
C28: Intressenter
C29: Intressent kategori
C30: Internationell aktör
C31: EU
C32: Statlig myndighet
C33: Region/Landsting
C34: Kommun
C35: Intresseorganisation
C36: Företag
C37: Privatperson
C38: Samhället
C40: Genomförbarhet
C41: OBS. Siffrorna innan semi-kolonet för respektive värde anger beräknat poäng. Formatet i listan nedan måste alltså vara nn:text där nn är den poäng som kopplas till valet.
C42: Genomförbarhet | D42: Kontroll | F42: Genomförbarhet | G42: Kontroll
C43: 1: Mycket låg | D43: =IF(NOT(ISNUMBER(1*LEFT(C43,FIND(":",C43)-1))),"FEL: Tecken innan kolon måste vara numeriskt","OK. Poäng=" & LEFT(C43,FIND(":",C43)-1)) -> OK. Poäng=1 | F43: 5: Mycket låg | G43: =IF(NOT(ISNUMBER(1*LEFT(F43,FIND(":",F43)-1))),"FEL: Tecken innan kolon måste vara numeriskt","OK. Poäng=" & LEFT(F43,FIND(":",F43)-1)) -> OK. Poäng=5
C44: 2: Låg | D44: =IF(NOT(ISNUMBER(1*LEFT(C44,FIND(":",C44)-1))),"FEL: Tecken innan kolon måste vara numeriskt","OK. Poäng=" & LEFT(C44,FIND(":",C44)-1)) -> OK. Poäng=2 | F44: 4: Låg | G44: =IF(NOT(ISNUMBER(1*LEFT(F44,FIND(":",F44)-1))),"FEL: Tecken innan kolon måste vara numeriskt","OK. Poäng=" & LEFT(F44,FIND(":",F44)-1)) -> OK. Poäng=4
C45: 3: Medel | D45: =IF(NOT(ISNUMBER(1*LEFT(C45,FIND(":",C45)-1))),"FEL: Tecken innan kolon måste vara numeriskt","OK. Poäng=" & LEFT(C45,FIND(":",C45)-1)) -> OK. Poäng=3 | F45: 3: Medel | G45: =IF(NOT(ISNUMBER(1*LEFT(F45,FIND(":",F45)-1))),"FEL: Tecken innan kolon måste vara numeriskt","OK. Poäng=" & LEFT(F45,FIND(":",F45)-1)) -> OK. Poäng=3
C46: 4: Hög | D46: =IF(NOT(ISNUMBER(1*LEFT(C46,FIND(":",C46)-1))),"FEL: Tecken innan kolon måste vara numeriskt","OK. Poäng=" & LEFT(C46,FIND(":",C46)-1)) -> OK. Poäng=4 | F46: 2: Hög | G46: =IF(NOT(ISNUMBER(1*LEFT(F46,FIND(":",F46)-1))),"FEL: Tecken innan kolon måste vara numeriskt","OK. Poäng=" & LEFT(F46,FIND(":",F46)-1)) -> OK. Poäng=2
C47: 5: Mycket hög | D47: =IF(NOT(ISNUMBER(1*LEFT(C47,FIND(":",C47)-1))),"FEL: Tecken innan kolon måste vara numeriskt","OK. Poäng=" & LEFT(C47,FIND(":",C47)-1)) -> OK. Poäng=5 | F47: 1: Mycket hög | G47: =IF(NOT(ISNUMBER(1*LEFT(F47,FIND(":",F47)-1))),"FEL: Tecken innan kolon måste vara numeriskt","OK. Poäng=" & LEFT(F47,FIND(":",F47)-1)) -> OK. Poäng=1
C49: Angelägenhet
C50: OBS. Siffrorna innan semi-kolon avgör poängen för det valda värdet. Formatet i listan nedan måste alltså vara nn:text där nn är den poäng som kopplas till valet.
C51: Angelägenhet | D51: Kontroll
C52: 1: Mycket låg | D52: =IF(NOT(ISNUMBER(1*LEFT(C52,FIND(":",C52)-1))),"FEL: Tecken innan kolon måste vara numeriskt","OK. Poäng=" & LEFT(C52,FIND(":",C52)-1)) -> OK. Poäng=1
C53: 2: Låg | D53: =IF(NOT(ISNUMBER(1*LEFT(C53,FIND(":",C53)-1))),"FEL: Tecken innan kolon måste vara numeriskt","OK. Poäng=" & LEFT(C53,FIND(":",C53)-1)) -> OK. Poäng=2
C54: 3: Medel | D54: =IF(NOT(ISNUMBER(1*LEFT(C54,FIND(":",C54)-1))),"FEL: Tecken innan kolon måste vara numeriskt","OK. Poäng=" & LEFT(C54,FIND(":",C54)-1)) -> OK. Poäng=3
C55: 4: Hög | D55: =IF(NOT(ISNUMBER(1*LEFT(C55,FIND(":",C55)-1))),"FEL: Tecken innan kolon måste vara numeriskt","OK. Poäng=" & LEFT(C55,FIND(":",C55)-1)) -> OK. Poäng=4
C56: 5: Mycket hög | D56: =IF(NOT(ISNUMBER(1*LEFT(C56,FIND(":",C56)-1))),"FEL: Tecken innan kolon måste vara numeriskt","OK. Poäng=" & LEFT(C56,FIND(":",C56)-1)) -> OK. Poäng=5
C59: Risk och hinder
C60: OBS. dessa värden används i fliken för hinderanalys. Siffrorna innan semi-kolon avgör respektive parameters värde. Formatet i listan för sannolikhet och konsekvens måste alltså vara nn:text där nn är den poäng som kopplas till valet.
C61: Konsekvenskategori | F61: Sannolikhet | H61: Konsekvens | J61: Riskbedömning | L61: Kontroll
C62: Kan försena leveransen | F62: 0: Ej Sannolikt | H62: 0: Ingen konsekvens | J62: 1: Mycket låg | K62: =IF(NOT(ISNUMBER(1*LEFT(J62,FIND(":",J62)-1))),"FEL: Tecken innan kolon måste vara numeriskt","OK. Poäng=" & LEFT(J62,FIND(":",J62)-1)) -> OK. Poäng=1
C63: Leveransen blir dyrare | F63: 1: Mycket låg | H63: 1: Mycket låg | J63: 2: Låg | K63: =IF(NOT(ISNUMBER(1*LEFT(J63,FIND(":",J63)-1))),"FEL: Tecken innan kolon måste vara numeriskt","OK. Poäng=" & LEFT(J63,FIND(":",J63)-1)) -> OK. Poäng=2
C64: Försvårar införandet | F64: 2: Låg | H64: 2: Låg | J64: 3: Medel | K64: =IF(NOT(ISNUMBER(1*LEFT(J64,FIND(":",J64)-1))),"FEL: Tecken innan kolon måste vara numeriskt","OK. Poäng=" & LEFT(J64,FIND(":",J64)-1)) -> OK. Poäng=3
C65: Hindrar nyttohemtagningen | F65: 3: Hög | H65: 3: Hög | J65: 4: Hög | K65: =IF(NOT(ISNUMBER(1*LEFT(J65,FIND(":",J65)-1))),"FEL: Tecken innan kolon måste vara numeriskt","OK. Poäng=" & LEFT(J65,FIND(":",J65)-1)) -> OK. Poäng=4
C66: Annan | F66: 4: Mycket hög | H66: 4: Mycket hög | J66: 5: Mycket hög | K66: =IF(NOT(ISNUMBER(1*LEFT(J66,FIND(":",J66)-1))),"FEL: Tecken innan kolon måste vara numeriskt","OK. Poäng=" & LEFT(J66,FIND(":",J66)-1)) -> OK. Poäng=5

Sheet -Kalkyldata- (hidden)
C1: Kalkyldata
C2: Den här fliken innehåller olika beräkningar (t.ex. pivottabeller) som används för diagram i fliken Business Case
C5: Kostnad | F5: Nytta | R5: Angelägenhet | U5: Genomförbarhet
C7: Kostnad per kostnadstyp | F7: Osäkerhetsanalys kvantitativa nyttor | L7: Kvalitativa nyttor | R7: Angelägenhet | U7: Genomförbarhet
C8: Denna pivottabell används som underlag för diagrammet "Kostnad per kostnadstyp" på Business Case-fliken | F8: Denna pivottabell används som underlag för diagrammet "Osäkerhetsbedömning" på Business Case-fliken | L8: Denna pivottabell används som underlag för diagrammet "ANTAL KVALITATIVA NYTTOR PER KATEGORI OCH BETYDELSE" på Business Case-fliken | R8: Denna pivottabell används som underlag för diagrammet "Angelägenhet" på Business Case-fliken | U8: Genomförbarhet
C9: Radetiketter | D9: Sum of Summa | G9: Nytta | H9: Kostnad | I9: Nettonytta | L9: Count of Nyttans betydelse | M9: Kolumnetiketter
C10: (blank) | D10: 0 | F10: Min | G10: ='Ekonomiska nyttor'!AO22 -> 0 | H10: =Kostnader!AI21 -> 940 | I10: =G10-H12 -> -940 | L10: Radetiketter | M10: (tom) | N10: 3: Medium
C11: Införande | D11: 356 | F11: Troligt | G11: ='Ekonomiska nyttor'!AN22 -> 6400 | H11: =Kostnader!AH21 -> 916 | I11: =G11-H11 -> 5484 | L11: (tom) | N11: 3
C12: Drift/Förvaltning | D12: 560 | F12: Max | G12: ='Ekonomiska nyttor'!AP22 -> 0 | H12: =Kostnader!AJ21 -> 940 | I12: =G12-H10 -> -940
C13: Totalsumma | D13: 916
C19: Kostnad per intressent | F19: Total nytta per intressent | L19: Individuella kvalitativa nyttor
C20: Denna pivottabell används som underlag för diagrammet "Kostnad per intressent" på Business Case-fliken | F20: Denna pivottabell används som underlag för diagrammet "Nytta per intressent" på Business Case-fliken | L20: Denna pivottabell används som underlag för diagrammet "Individuella kvalitativa nyttor" på Business Case-fliken
C21: Radetiketter | D21: Summa av Summa | F21: Radetiketter | G21: Summa av Summa | L21: Radetiketter | M21: Summa av Bedömd vikt
C22: VO Digitalisering och medicinsk teknik | D22: 916 | F22: ANOPIVA | G22: 4,400 | L22: (blank) @ (blank) | M22: 9
C23: (blank) | D23: 0 | F23: Folkhälsa | G23: 1,295 | L23: Totalsumma | M23: 9
C24: Totalsumma | D24: 916 | F24: Biobanken Norr | G24: 705
F25: (blank) | G25: 0
F26: Totalsumma | G26: 6,400
F31: Total nytta per kategori | L31: Individuella Ekonomiska nyttor
F32: Denna pivottabell används som underlag för diagrammet "Nytta per kategori" på Business Case-fliken | L32: Denna pivottabell används som underlag för diagrammet "Individuella ekonomiska nyttor" på Business Case-fliken
F33: Radetiketter | G33: Summa av Summa | L33: Radetiketter | M33: Summa av Summa
F34: (blank) | G34: 0 | L34: (blank) @ (blank) | M34: 0
F35: Reducerad personalkostnad | G35: 5,105 | L35: Reducerad personalkostnad @ Biobanken Norr | M35: 705
F36: Övriga besparingar | G36: 1,295 | L36: Övriga besparingar @ Folkhälsa | M36: 1,295
F37: Totalsumma | G37: 6,400 | L37: Reducerad personalkostnad @ ANOPIVA | M37: 4,400
L38: Totalsumma | M38: 6,400
C44: Följande rader används för beräkning av Payback-år
C45: Ack. diskonterat kassaflöde > 0? | D45: ='Business Case'!AV36>0 -> TRUE | E45: ='Business Case'!AW36>0 -> TRUE | F45: ='Business Case'!AX36>0 -> TRUE | G45: ='Business Case'!AY36>0 -> TRUE | H45: ='Business Case'!AZ36>0 -> TRUE | I45: ='Business Case'!BA36>0 -> TRUE | J45: ='Business Case'!BB36>0 -> TRUE | K45: ='Business Case'!BC36>0 -> TRUE | L45: ='Business Case'!BD36>0 -> TRUE | M45: ='Business Case'!BE36>0 -> TRUE
C46: Årets och alla framtida års ackumulerade kassaflöde > 0? | D46: =IF(ISERROR(MATCH(FALSE,D45:$M$45,0)),TRUE,FALSE) -> TRUE | E46: =IF(ISERROR(MATCH(FALSE,E45:$M$45,0)),TRUE,FALSE) -> TRUE | F46: =IF(ISERROR(MATCH(FALSE,F45:$M$45,0)),TRUE,FALSE) -> TRUE | G46: =IF(ISERROR(MATCH(FALSE,G45:$M$45,0)),TRUE,FALSE) -> TRUE | H46: =IF(ISERROR(MATCH(FALSE,H45:$M$45,0)),TRUE,FALSE) -> TRUE | I46: =IF(ISERROR(MATCH(FALSE,I45:$M$45,0)),TRUE,FALSE) -> TRUE | J46: =IF(ISERROR(MATCH(FALSE,J45:$M$45,0)),TRUE,FALSE) -> TRUE | K46: =IF(ISERROR(MATCH(FALSE,K45:$M$45,0)),TRUE,FALSE) -> TRUE | L46: =IF(ISERROR(MATCH(FALSE,L45:$M$45,0)),TRUE,FALSE) -> TRUE | M46: =IF(ISERROR(MATCH(FALSE,M45:$M$45,0)),TRUE,FALSE) -> TRUE
C47: Är payback-år? | D47: =IF('Business Case'!AV12=Grunddata!$D$12,IF(D46,TRUE,FALSE),IF(AND(D46,NOT(#REF!)),TRUE,FALSE)) -> TRUE | E47: =IF('Business Case'!AW12=Grunddata!$D$12,IF(E46,TRUE,FALSE),IF(AND(E46,NOT(D46)),TRUE,FALSE)) -> FALSE | F47: =IF('Business Case'!AX12=Grunddata!$D$12,IF(F46,TRUE,FALSE),IF(AND(F46,NOT(E46)),TRUE,FALSE)) -> FALSE | G47: =IF('Business Case'!AY12=Grunddata!$D$12,IF(G46,TRUE,FALSE),IF(AND(G46,NOT(F46)),TRUE,FALSE)) -> FALSE | H47: =IF('Business Case'!AZ12=Grunddata!$D$12,IF(H46,TRUE,FALSE),IF(AND(H46,NOT(G46)),TRUE,FALSE)) -> FALSE | I47: =IF('Business Case'!BA12=Grunddata!$D$12,IF(I46,TRUE,FALSE),IF(AND(I46,NOT(H46)),TRUE,FALSE)) -> FALSE | J47: =IF('Business Case'!BB12=Grunddata!$D$12,IF(J46,TRUE,FALSE),IF(AND(J46,NOT(I46)),TRUE,FALSE)) -> FALSE | K47: =IF('Business Case'!BC12=Grunddata!$D$12,IF(K46,TRUE,FALSE),IF(AND(K46,NOT(J46)),TRUE,FALSE)) -> FALSE | L47: =IF('Business Case'!BD12=Grunddata!$D$12,IF(L46,TRUE,FALSE),IF(AND(L46,NOT(K46)),TRUE,FALSE)) -> FALSE | M47: =IF('Business Case'!BE12=Grunddata!$D$12,IF(M46,TRUE,FALSE),IF(AND(M46,NOT(L46)),TRUE,FALSE)) -> FALSE
C49: Nyckeltal
C50: NPV (TKR) | D50: ='Business Case'!BF35 -> 5,327
C51: Payback (år) | D51: =IF(ISERROR(IF(MATCH(TRUE,D47:M47,0)=1,1,MATCH(TRUE,D47:L47,0)-INDEX('Business Case'!AV36:BE36,1,MATCH(TRUE,D47:L47,0))/(INDEX('Business Case'!AV36:BE36,1,MATCH(TRUE,D47:L47,0))-INDEX('Business Case'!AV36:BE36,1,MATCH(TRUE,D47:L47,0)-1)))),"Ingen payback",IF(MATCH(TRUE,D47:L47,0)=1,1,MATCH(TRUE,D47:L47,0)-INDEX('Business Case'!AV36:BE36,1,MATCH(TRUE,D47:L47,0))/(INDEX('Business Case'!AV36:BE36,1,MATCH(TRUE,D47:L47,0))-INDEX('Business Case'!AV36:BE36,1,MATCH(TRUE,D47:L47,0)-1)))) -> 1.0
